Workbook

Sheet 1. Info
AB1: Algoma Power Inc.
AB2: Atikokan Hydro Inc.
AB3: Attawapiskat Power Corporation
AB4: Bluewater Power Distribution Corporation
AB5: Brant County Power Inc.
AB6: Brantford Power Inc.
AB7: Burlington Hydro Inc.
AB8: Cambridge and North Dumfries Hydro Inc.
AB9: Canadian Niagara Power Inc.
AB10: Centre Wellington Hydro Ltd.
AB11: Chapleau Public Utilities Corporation
AB12: COLLUS PowerStream Corp.
A13: Drop-down lists are shaded blue; Input cells are shaded green. | AB13: Cooperative Hydro Embrun Inc.
AB14: E.L.K. Energy Inc.
C15: Utility Name | D15: Entegrus Powerlines Inc. | AB15: Enersource Hydro Mississauga Inc.
AB16: Entegrus Powerlines Inc.
C17: Service Territory | AB17: EnWin Utilities Ltd.
AB18: Erie Thames Powerlines Corporation
C19: Assigned EB Number | D19: EB-2015-0061 | AB19: Espanola Regional Hydro Distribution Corporation
AB20: Essex Powerlines Corporation
C21: Name and Title | D21: Andrya Eagen, Senior Regulatory Specialist | AB21: Festival Hydro Inc.
AB22: Fort Albany Power Corporation
C23: Phone Number | D23: 519-352-6300, Ext 243 | AB23: Fort Frances Power Corporation
AB24: Greater Sudbury Hydro Inc.
C25: Email Address | D25: regulatory@entegrus.com | AB25: Grimsby Power Inc.
AB26: Guelph Hydro Electric Systems Inc.
C27: Date | D27: 2015-08-25 | AB27: Haldimand County Hydro Inc.
AB28: Halton Hills Hydro Inc.
C29: Last COS Re-based Year | D29: 2010 | AB29: Hearst Power Distribution Company Limited
AB30: Horizon Utilities Corporation
AB31: Hydro 2000 Inc.
AB32: Hydro Hawkesbury Inc.
AB33: Hydro One Brampton Networks Inc.
AB34: Hydro One Networks Inc.
AB35: Hydro One Remote Communities Inc.
AB36: Hydro Ottawa Limited
AB37: Innpower Corporation
AB38: Kashechewan Power Corporation
AB39: Kenora Hydro Electric Corporation Ltd.
AB40: Kingston Hydro Corporation
AB41: Kitchener-Wilmot Hydro Inc.
AB42: Lakefront Utilities Inc.
AB43: Lakeland Power Distribution Ltd.
AB44: London Hydro Inc.
AB45: Midland Power Utility Corporation
AB46: Milton Hydro Distribution Inc.
AB47: Newmarket-Tay Power Distribution Ltd.
AB48: Niagara Peninsula Energy Inc.
AB49: Niagara-on-the-Lake Hydro Inc.
AB50: Norfolk Power Distribution Inc.
AB51: North Bay Hydro Distribution Limited
AB52: Northern Ontario Wires Inc.
AB53: Oakville Hydro Electricity Distribution Inc.
AB54: Orangeville Hydro Limited
AB55: Orillia Power Distribution Corporation
AB56: Oshawa PUC Networks Inc.
AB57: Ottawa River Power Corporation
AB58: Peterborough Distribution Incorporated
AB59: PowerStream Inc.
AB60: PUC Distribution Inc.
AB61: Renfrew Hydro Inc.
AB62: Rideau St. Lawrence Distribution Inc.
AB63: Sioux Lookout Hydro Inc.
AB64: St. Thomas Energy Inc.
AB65: Thunder Bay Hydro Electricity Distribution Inc.
AB66: Tillsonburg Hydro Inc.
AB67: Toronto Hydro-Electric System Limited
AB68: Veridian Connections Inc.
AB69: Wasaga Distribution Inc.
AB70: Waterloo North Hydro Inc.
AB71: Welland Hydro-Electric System Corp.
AB72: Wellington North Power Inc.
AB73: West Coast Huron Energy Inc.
AB74: Westario Power Inc.
AB75: Whitby Hydro Electric Corporation
AB76: Woodstock Hydro Services Inc.

Sheet 2. Table of Contents
D20: 1. Info | I20: 6. Historical Wholesale
D22: 2. Table of Contents | I22: 7. Current Wholesale
D24: 3. Rate Classes | I24: 8. Forecast Wholesale
D26: 4. RRR Data | I26: 9. RTSR Rates to Forecast
D28: 5. UTRs and Sub-Transmission

Sheet 3. Rate Classes
C13: 1. Select the appropriate rate classes that appear on your most recent Board-Approved Tariff of Rates and Charges. 2. Enter the RTS Network and Connection Rate as it appears on the Tariff of Rates and Charges
C15: Rate Class | E15: Unit | G15: RTSR-Network | I15: RTSR-Connection
C17: Residential | E17: kWh | G17: 0.0074 | I17: 0.0053 | L17: =IF(OR(ISBLANK(C17), ISERROR(FIND("Choose", C17))=FALSE), 0, 1) -> 1 | M17: ="C" & ROW(C17) -> C17 | N17: =IF(OR(C17="General Service Intermediate Rate Class 1,000 To 4,999 kW (formerly General Service > 50 kW Customers)", C17="General Service Intermediate Rate Class 1,000 To 4,999 kW (formerly Large Use Customers)"), "x", "") ->  | W17: Choose Rate Class
C18: General Service Less Than 50 kW | E18: kWh | G18: 0.0065 | I18: 0.0047 | L18: 1 | M18: C18 | N18: =IF(OR(C18="General Service Intermediate Rate Class 1,000 To 4,999 kW (formerly General Service > 50 kW Customers)", C18="General Service Intermediate Rate Class 1,000 To 4,999 kW (formerly Large Use Customers)"), "x", "") ->  | W18: Residential
C19: General Service 50 to 4,999 kW | E19: kW | G19: 2.8272 | I19: 1.9724 | L19: 1 | M19: C19 | W19: Residential Regular
C20: Large Use | E20: kW | G20: 2.9998 | I20: 2.1684 | L20: 1 | M20: C20 | W20: Residential Urban
C21: Unmetered Scattered Load | E21: kWh | G21: 0.0065 | I21: 0.0047 | L21: 1 | M21: C21 | W21: Residential Urban Year-Round
C22: Sentinel Lighting | E22: kW | G22: 2.0769 | I22: 1.4823 | L22: 1 | M22: C22 | W22: Residential Suburban
C23: Street Lighting | E23: kW | G23: 2.0555 | I23: 1.4478 | L23: 1 | M23: C23 | W23: Residential Suburban Seasonal
C24: Embedded Distributor | E24: kW | G24: 0 | I24: 0 | L24: 1 | M24: C24 | W24: Residential Suburban Year Round
C25: Choose Rate Class | L25: 0 | M25: C25 | W25: Residential - Time of Use
C26: Choose Rate Class | L26: 0 | M26: C26 | W26: Residential - Hensall
C27: Choose Rate Class | L27: 0 | M27: C27 | W27: Residential – High Density [R1]
C28: Choose Rate Class | L28: 0 | M28: C28 | W28: Residential – Normal Density [R2]
C29: Choose Rate Class | L29: 0 | M29: C29 | W29: Seasonal Residential – High Density [R3]
C30: Choose Rate Class | L30: 0 | M30: C30 | W30: Seasonal Residential – Normal Density [R4]
C31: Choose Rate Class | L31: 0 | M31: C31 | W31: Residential – Urban [UR]
C32: Choose Rate Class | L32: 0 | M32: C32 | W32: General Service Less Than 50 kW
C33: Choose Rate Class | L33: 0 | M33: C33 | W33: General Service Less Than 50 kW – Single Phase energy-billed [G1]
C34: Choose Rate Class | L34: 0 | M34: C34 | W34: General Service Less Than 50 kW – Three Phase energy-billed [G3]
C35: Choose Rate Class | L35: 0 | M35: C35 | W35: General Service Less Than 50 kW – Transmission Class energy-billed [T]
C36: Choose Rate Class | L36: 0 | M36: C36 | W36: General Service Less Than 50 kW – Urban energy-billed [UG]
C37: Choose Rate Class | L37: 0 | M37: C37 | W37: Westport Sewage Treatment Plant
C38: Choose Rate Class | L38: 0 | M38: C38 | W38: Small Commercial and USL - per meter
N39: =COUNTIF(N17:N38, "x") -> 0 | W39: Small Commercial and USL - per connection
W40: Farms – Single Phase energy-billed [F1]
W41: General Service 50 to 499 kW
W42: General Service 50 to 699 kW
W43: General Service 50 to 999 kW
W44: General Service 50 to 999 kW - Interval Metered
W45: General Service 50 to 1,000 kW
W46: General Service 50 to 1,000 kW - Interval Meters
W47: General Service 50 to 1,000 kW - Non Interval Meters
W48: General Service 50 to 1,499 kW
W49: General Service 50 to 1,499 kW - Interval Metered
W50: General Service 50 to 2,499 kW
W51: General Service 50 to 2,999 kW
W52: General Service 50 to 2,999 kW - Time of Use
W53: General Service 50 to 4,999 kW
W54: General Service 50 to 4,999 kW – Interval Metered
W55: General Service 50 to 4,999 kW - Time of Use
W56: General Service 50 to 4,999 kW (CoGeneration)
W57: General Service 50 to 4,999 kW (formerly Time of Use)
W58: General Service 500 to 4,999 kW
W59: General Service 700 to 4,999 kW
W60: General Service 1,000 to 2,999 kW
W61: General Service 1,000 to 4,999 kW
W62: General Service 1,000 to 4,999 kW - Interval Meters
W63: General Service 1,000 To 4,999 kW (co-generation)
W64: General Service Greater Than 1,000 kW
W65: General Service Intermediate Rate Class 1,000 To 4,999 kW (formerly Large Use Customers)
W66: General Service Intermediate Rate Class 1,000 To 4,999 kW (formerly General Service > 50 kW Customers)
W67: General Service 1,500 to 4,999 kW
W68: General Service Equal To Or Greater Than 1,500 kW
W69: General Service Equal To Or Greater Than 1,500 kW - Interval Metered
W70: General Service Intermediate 1,000 To 4,999 kW
W71: General Service 2,500 to 4,999 kW
W72: General Service 3,000 to 4,999 kW
W73: General Service 3,000 to 4,999 kW - Interval Metered
W74: General Service 3,000 to 4,999 kW - Intermediate Use
W75: General Service 3,000 to 4,999 kW - Time of Use
W76: Intermediate With Self Generation
W77: General Service - Commercial
W78: General Service - Institutional
W79: Farms – Three Phase energy-billed [F3]
W80: Large Use
W81: Large Use - Regular
W82: Large Use > 5000 kW
W83: Large Use - 3TS
W84: Large Use - Ford Annex
W85: Unmetered Scattered Load
W86: Sentinel Lighting
W87: Street Lighting
W88: Embedded Distributor
W89: Low Voltage Wheeling Charge Rate
W90: Stand-By
W91: Standby Power
W92: Standby Power – INTERIM APPROVAL
W93: Standby Power - APPROVED ON AN INTERIM BASIS
W94: Standby - General Service 50 - 1,000 kW
W95: Standby Power General Service 50 to 1,499 kW
W96: Standby - General Service 1,000 - 5,000 kW
W97: Standby Power General Service 1,500 to 4,999 kW
W98: Standby - Large Use
W99: Standby Power General Service Large Use
W100: Standby Distribution Service

Sheet 4. RRR Data
B15: Rate Class | C15: Rate Description | D15: Unit | E15: Rate | F15: Non-Loss Adjusted Metered kWh | G15: Non-Loss Adjusted Metered kW | H15: Applicable Loss Factor eg: (1.0325) | I15: Loss Adjusted Billed kWh
B17: Residential | C17: RTSR - Network | D17: kWh | E17: 0.0074 | F17: 289455443.3 | G17: 0 | H17: 1.0428 | I17: =F17*H17 -> 301844136.3
B18: Residential | C18: RTSR - Connection | D18: kWh | E18: 0.0053 | F18: 289455443.3 | G18: 0 | H18: 1.0428 | I18: =F18*H18 -> 301844136.3
B19: General Service Less Than 50 kW | C19: RTSR - Network | D19: kWh | E19: 0.0065 | F19: 109826277.3 | G19: 0 | H19: 1.0428 | I19: =F19*H19 -> 114526842
B20: General Service Less Than 50 kW | C20: RTSR - Connection | D20: kWh | E20: 0.0047 | F20: 109826277.3 | G20: 0 | H20: 1.0428 | I20: =F20*H20 -> 114526842
B21: General Service 50 to 4,999 kW | C21: RTSR - Network | D21: kW | E21: 2.8272 | F21: 456387643 | G21: 1201615
B22: General Service 50 to 4,999 kW | C22: RTSR - Connection | D22: kW | E22: 1.9724 | F22: 456387643 | G22: 1201615
B23: Large Use | C23: RTSR - Network | D23: kW | E23: 2.9998 | F23: 64740617.01 | G23: 147471
B24: Large Use | C24: RTSR - Connection | D24: kW | E24: 2.1684 | F24: 64740617.01 | G24: 147471
B25: Unmetered Scattered Load | C25: RTSR - Network | D25: kWh | E25: 0.0065 | F25: 1249443.96 | G25: 0 | H25: 1.0428 | I25: =F25*H25 -> 1302920.161
B26: Unmetered Scattered Load | C26: RTSR - Connection | D26: kWh | E26: 0.0047 | F26: 1249443.96 | G26: 0 | H26: 1.0428 | I26: =F26*H26 -> 1302920.161
B27: Sentinel Lighting | C27: RTSR - Network | D27: kW | E27: 2.0769 | F27: 408651.7533 | G27: 1144.263889
B28: Sentinel Lighting | C28: RTSR - Connection | D28: kW | E28: 1.4823 | F28: 408651.7533 | G28: 1144.263889
B29: Street Lighting | C29: RTSR - Network | D29: kW | E29: 2.0555 | F29: 7533249.33 | G29: 22342.32
B30: Street Lighting | C30: RTSR - Connection | D30: kW | E30: 1.4478 | F30: 7533249.33 | G30: 22342.32
B31: Embedded Distributor | C31: RTSR - Network | D31: kW | E31: 0 | F31: 10685624.94 | G31: 10054
B32: Embedded Distributor | C32: RTSR - Connection | D32: kW | E32: 0 | F32: 10685624.94 | G32: 10054

Sheet 5. UTRs and Sub-Transmission
B18: Uniform Transmission Rates | C18: Unit | E18: Effective January 1, 2014 | G18: Effective January 1, 2015 | I18: Effective January 1, 2016
B20: Rate Description | E20: Rate | G20: Rate | I20: Rate
B22: Network Service Rate | C22: kW | E22: 3.82 | G22: 3.78 | I22: 3.78
B24: Line Connection Service Rate | C24: kW | E24: 0.82 | G24: 0.86 | I24: 0.86
B26: Transformation Connection Service Rate | C26: kW | E26: 1.98 | G26: 2 | I26: 2
B29: Hydro One Sub-Transmission Rates | C29: Unit | E29: Effective January 1, 2014 | G29: Effective January 1, 2015 | I29: Effective January 1, 2016
B33: Rate Description | E33: Rate | G33: Rate | I33: Rate
B35: Network Service Rate | C35: kW | E35: 3.23 | G35: 3.4121 | I35: =+G35 -> 3.4121
B37: Line Connection Service Rate | C37: kW | E37: 0.65 | G37: 0.7879 | I37: =+G37 -> 0.7879
B39: Transformation Connection Service Rate | C39: kW | E39: 1.62 | G39: 1.8018 | I39: =+G39 -> 1.8018
B41: Both Line and Transformation Connection Service Rate | C41: kW | E41: =SUM(E37,E39) -> 2.27 | G41: =SUM(G37,G39) -> 2.5897 | I41: =I39+I37 -> 2.5897
B44: If needed, add extra host here. (I) | C44: Unit | E44: Effective January 1, 2014 | G44: Effective January 1, 2015 | I44: Effective January 1, 2016
B48: Rate Description | E48: Rate | G48: Rate | I48: Rate
B50: Network Service Rate | C50: kW
B52: Line Connection Service Rate | C52: kW
B54: Transformation Connection Service Rate | C54: kW
B56: Both Line and Transformation Connection Service Rate | C56: kW | E56: =SUM(E52,E54) -> 0 | G56: =SUM(G52,G54) -> 0 | I56: =I54+I52 -> 0
B59: If needed, add extra host here. (II) | C59: Unit | E59: Effective January 1, 2014 | G59: Effective January 1, 2015 | I59: Effective January 1, 2016
B63: Rate Description | E63: Rate | G63: Rate | I63: Rate
B65: Network Service Rate | C65: kW
B67: Line Connection Service Rate | C67: kW
B69: Transformation Connection Service Rate | C69: kW
B71: Both Line and Transformation Connection Service Rate | C71: kW | E71: =SUM(E67,E69) -> 0 | G71: =SUM(G67,G69) -> 0 | I71: =I69+I67 -> 0
B75: Hydro One Sub-Transmission Rate Rider 9A | C75: Unit | E75: Effective January 1, 2014 | G75: Effective January 1, 2015 | I75: Effective January 1, 2016
B77: Rate Description | E77: Rate | G77: Rate | I77: Rate
B79: RSVA Transmission network – 4714 – which affects 1584 | C79: kW | E79: 0.1465 | G79: 0 | I79: 0
B81: RSVA Transmission connection – 4716 – which affects 1586 | C81: kW | E81: 0.0667 | G81: 0 | I81: 0
B83: RSVA LV – 4750 – which affects 1550 | C83: kW | E83: 0.0475 | G83: 0 | I83: 0
B85: RARA 1 – 2252 – which affects 1590 | C85: kW | E85: 0.0419 | G85: 0 | I85: 0
B87: RARA 1 – 2252 – which affects 1590 (2008) | C87: kW | E87: -0.027 | G87: 0 | I87: 0
B89: RARA 1 – 2252 – which affects 1590 (2009) | C89: kW | E89: -0.0006 | G89: 0 | I89: 0
B91: Hydro One Sub-Transmission Rate Rider 9A | C91: kW | E91: 0.275 | G91: 0 | I91: =SUM(I79:I89) -> 0
E94: Historical 2014 | G94: Current 2015 | I94: Forecast 2016
B95: Low Voltage Switchgear Credit (if applicable, enter as a negative value) | C95: $

Sheet 6. Historical Wholesale
B21: IESO | D21: Network | H21: Line Connection | L21: Transformation Connection | P21: Total Line
B22: Month | D22: Units Billed | E22: Rate | F22: Amount | H22: Units Billed | I22: Rate | J22: Amount | L22: Units Billed | M22: Rate | N22: Amount | P22: Amount
B24: January | D24: 97249 | E24: =IF(D24<>0,F24/D24,0) -> 3.82 | F24: 371491.18 | H24: 104976 | I24: =IF(H24<>0,J24/H24,0) -> 0.82 | J24: 86080.32 | L24: 104976 | M24: =IF(L24<>0,N24/L24,0) -> 1.98 | N24: 207852.48 | P24: =J24+N24 -> 293932.8
B25: February | D25: 90964 | E25: =IF(D25<>0,F25/D25,0) -> 3.82 | F25: 347482.48 | H25: 96965 | I25: =IF(H25<>0,J25/H25,0) -> 0.82 | J25: 79511.3 | L25: 96965 | M25: =IF(L25<>0,N25/L25,0) -> 1.98 | N25: 191990.7 | P25: 271502
B26: March | D26: 89716 | E26: 3.82 | F26: 342715.12 | H26: 91589 | I26: 0.82 | J26: 75102.98 | L26: 91589 | M26: 1.98 | N26: 181346.22 | P26: 256449.2
B27: April | D27: 74024 | E27: 3.82 | F27: 282771.68 | H27: 76695 | I27: 0.82 | J27: 62889.9 | L27: 76695 | M27: 1.98 | N27: 151856.1 | P27: 214746
B28: May | D28: 85352 | E28: 3.82 | F28: 326044.64 | H28: 89417 | I28: 0.82 | J28: 73321.94 | L28: 89417 | M28: 1.98 | N28: 177045.66 | P28: 250367.6
B29: June | D29: 102708 | E29: 3.82 | F29: 392344.56 | H29: 110149 | I29: 0.82 | J29: 90322.18 | L29: 110149 | M29: 1.98 | N29: 218095.02 | P29: 308417.2
B30: July | D30: 110219 | E30: 3.82 | F30: 421036.58 | H30: 113980 | I30: 0.82 | J30: 93463.6 | L30: 113980 | M30: 1.98 | N30: 225680.4 | P30: 319144
B31: August | D31: 111182 | E31: 3.82 | F31: 424715.24 | H31: 118272 | I31: 0.82 | J31: 96983.04 | L31: 118272 | M31: 1.98 | N31: 234178.56 | P31: 331161.6
B32: September | D32: 113359 | E32: 3.82 | F32: 433031.38 | H32: 117209 | I32: 0.82 | J32: 96111.38 | L32: 117209 | M32: 1.98 | N32: 232073.82 | P32: 328185.2
B33: October | D33: 75929 | E33: 3.82 | F33: 290048.78 | H33: 82094 | I33: 0.82 | J33: 67317.08 | L33: 82094 | M33: 1.98 | N33: 162546.12 | P33: 229863.2
B34: November | D34: 89278 | E34: 3.82 | F34: 341041.96 | H34: 91894 | I34: 0.82 | J34: 75353.08 | L34: 91894 | M34: 1.98 | N34: 181950.12 | P34: 257303.2
B35: December | D35: 87856 | E35: 3.82 | F35: 335609.92 | H35: 90595 | I35: 0.82 | J35: 74287.9 | L35: 90595 | M35: 1.98 | N35: 179378.1 | P35: 253666
B37: Total | D37: =SUM(D24:D35) -> 1127836 | E37: =IF(D37<>0,F37/D37,0) -> 3.82 | F37: =SUM(F24:F35) -> 4308333.52 | H37: =SUM(H24:H35) -> 1183835 | I37: =IF(H37<>0,J37/H37,0) -> 0.82 | J37: =SUM(J24:J35) -> 970744.7 | L37: =SUM(L24:L35) -> 1183835 | M37: =IF(L37<>0,N37/L37,0) -> 1.98 | N37: =SUM(N24:N35) -> 2343993.3 | P37: =SUM(P24:P35) -> 3314738
B39: Hydro One | D39: Network | H39: Line Connection | L39: Transformation Connection | P39: Total Line
B41: Month | D41: Units Billed | E41: Rate | F41: Amount | H41: Units Billed | I41: Rate | J41: Amount | L41: Units Billed | M41: Rate | N41: Amount | P41: Amount
B43: January | D43: 61997.8 | E43: =IF(D43<>0,F43/D43,0) -> 3.23 | F43: 200252.894 | H43: 55300.85 | I43: =IF(H43<>0,J43/H43,0) -> 0.65 | J43: 35945.5525 | L43: 49967.41 | M43: =IF(L43<>0,N43/L43,0) -> 1.62 | N43: 80947.2042 | P43: =J43+N43 -> 116892.7567
B44: February | D44: 63917.69 | E44: =IF(D44<>0,F44/D44,0) -> 3.23 | F44: 206454.1387 | H44: 54707.46 | I44: =IF(H44<>0,J44/H44,0) -> 0.65 | J44: 35559.849 | L44: 52717.26 | M44: =IF(L44<>0,N44/L44,0) -> 1.62 | N44: 85401.9612 | P44: 120961.8102
B45: March | D45: 55014.13 | E45: 3.23 | F45: 177695.6399 | H45: 50214.42 | I45: 0.65 | J45: 32639.373 | L45: 45065.76 | M45: 1.62 | N45: 73006.5312 | P45: 105645.9042
B46: April | D46: 50092.11 | E46: 3.23 | F46: 161797.5153 | H46: 46091.28 | I46: 0.65 | J46: 29959.332 | L46: 39881.97 | M46: 1.62 | N46: 64608.7914 | P46: 94568.1234
B47: May | D47: 56959.77 | E47: 3.23 | F47: 183980.0571 | H47: 51211.09 | I47: 0.65 | J47: 33287.2085 | L47: 44577.8 | M47: 1.62 | N47: 72216.036 | P47: 105503.2445
B48: June | D48: 66486.92 | E48: 3.23 | F48: 214752.7516 | H48: 59643.22 | I48: 0.65 | J48: 38768.093 | L48: 52609.92 | M48: 1.62 | N48: 85228.0704 | P48: 123996.1634
B49: July | D49: 67893.83 | E49: 3.23 | F49: 219297.0709 | H49: 60859.59 | I49: 0.65 | J49: 39558.7335 | L49: 54196.91 | M49: 1.62 | N49: 87798.9942 | P49: 127357.7277
B50: August | D50: 70512.63 | E50: 3.23 | F50: 227755.7949 | H50: 63128.84 | I50: 0.65 | J50: 41033.746 | L50: 56356.31 | M50: 1.62 | N50: 91297.2222 | P50: 132330.9682
B51: September | D51: 69167.68 | E51: 3.23 | F51: 223411.6064 | H51: 64233.81 | I51: 0.65 | J51: 41751.9765 | L51: 54957.02 | M51: 1.62 | N51: 89030.3724 | P51: 130782.3489
B52: October | D52: 51631.36 | E52: 3.23 | F52: 166769.2928 | H52: 47742.07 | I52: 0.65 | J52: 31032.3455 | L52: 41302.17 | M52: 1.62 | N52: 66909.5154 | P52: 97941.8609
B53: November | D53: 58553.66 | E53: 3.23 | F53: 189128.3218 | H53: 52826.36 | I53: 0.65 | J53: 34337.134 | L53: 47028.83 | M53: 1.62 | N53: 76186.7046 | P53: 110523.8386
B54: December | D54: 57515.8 | E54: 3.23 | F54: 185776.034 | H54: 51921.58 | I54: 0.65 | J54: 33749.027 | L54: 46102.57 | M54: 1.62 | N54: 74686.1634 | P54: 108435.1904
B56: Total | D56: =SUM(D43:D54) -> 729743.38 | E56: =IF(D56<>0,F56/D56,0) -> 3.23 | F56: =SUM(F43:F54) -> 2357071.117 | H56: =SUM(H43:H54) -> 657880.57 | I56: =IF(H56<>0,J56/H56,0) -> 0.65 | J56: =SUM(J43:J54) -> 427622.3705 | L56: =SUM(L43:L54) -> 584763.93 | M56: =IF(L56<>0,N56/L56,0) -> 1.62 | N56: =SUM(N43:N54) -> 947317.5666 | P56: =SUM(P43:P54) -> 1374939.937
B58: Add Extra Host Here (I) | D58: Network | H58: Line Connection | L58: Transformation Connection | P58: Total Line
B59: (if needed)
B60: Month | D60: Units Billed | E60: Rate | F60: Amount | H60: Units Billed | I60: Rate | J60: Amount | L60: Units Billed | M60: Rate | N60: Amount | P60: Amount
B62: January | E62: =IF(D62<>0,F62/D62,0) -> 0 | I62: =IF(H62<>0,J62/H62,0) -> 0 | M62: =IF(L62<>0,N62/L62,0) -> 0 | P62: =J62+N62 -> 0
B63: February | E63: 0 | I63: 0 | M63: 0 | P63: 0
B64: March | E64: 0 | I64: 0 | M64: 0 | P64: 0
B65: April | E65: 0 | I65: 0 | M65: 0 | P65: 0
B66: May | E66: 0 | I66: 0 | M66: 0 | P66: 0
B67: June | E67: 0 | I67: 0 | M67: 0 | P67: 0
B68: July | E68: 0 | I68: 0 | M68: 0 | P68: 0
B69: August | E69: 0 | I69: 0 | M69: 0 | P69: 0
B70: September | E70: 0 | I70: 0 | M70: 0 | P70: 0
B71: October | E71: 0 | I71: 0 | M71: 0 | P71: 0
B72: November | E72: 0 | I72: 0 | M72: 0 | P72: 0
B73: December | E73: 0 | I73: 0 | M73: 0 | P73: 0
B75: Total | D75: =SUM(D62:D73) -> 0 | E75: =IF(D75<>0,F75/D75,0) -> 0 | F75: =SUM(F62:F73) -> 0 | H75: =SUM(H62:H73) -> 0 | I75: =IF(H75<>0,J75/H75,0) -> 0 | J75: =SUM(J62:J73) -> 0 | L75: =SUM(L62:L73) -> 0 | M75: =IF(L75<>0,N75/L75,0) -> 0 | N75: =SUM(N62:N73) -> 0 | P75: =SUM(P62:P73) -> 0
B77: Add Extra Host Here (II) | D77: Network | H77: Line Connection | L77: Transformation Connection | P77: Total Line
B78: (if needed)
B79: Month | D79: Units Billed | E79: Rate | F79: Amount | H79: Units Billed | I79: Rate | J79: Amount | L79: Units Billed | M79: Rate | N79: Amount | P79: Amount
B81: January | E81: =IF(D81<>0,F81/D81,0) -> 0 | I81: =IF(H81<>0,J81/H81,0) -> 0 | M81: =IF(L81<>0,N81/L81,0) -> 0 | P81: =J81+N81 -> 0
B82: February | E82: 0 | I82: 0 | M82: 0 | P82: 0
B83: March | E83: 0 | I83: 0 | M83: 0 | P83: 0
B84: April | E84: 0 | I84: 0 | M84: 0 | P84: 0
B85: May | E85: 0 | I85: 0 | M85: 0 | P85: 0
B86: June | E86: 0 | I86: 0 | M86: 0 | P86: 0
B87: July | E87: 0 | I87: 0 | M87: 0 | P87: 0
B88: August | E88: 0 | I88: 0 | M88: 0 | P88: 0
B89: September | E89: 0 | I89: 0 | M89: 0 | P89: 0
B90: October | E90: 0 | I90: 0 | M90: 0 | P90: 0
B91: November | E91: 0 | I91: 0 | M91: 0 | P91: 0
B92: December | E92: 0 | I92: 0 | M92: 0 | P92: 0
B94: Total | D94: =SUM(D81:D92) -> 0 | E94: =IF(D94<>0,F94/D94,0) -> 0 | F94: =SUM(F81:F92) -> 0 | H94: =SUM(H81:H92) -> 0 | I94: =IF(H94<>0,J94/H94,0) -> 0 | J94: =SUM(J81:J92) -> 0 | L94: =SUM(L81:L92) -> 0 | M94: =IF(L94<>0,N94/L94,0) -> 0 | N94: =SUM(N81:N92) -> 0 | P94: =SUM(P81:P92) -> 0
B96: Total | D96: Network | H96: Line Connection | L96: Transformation Connection | P96: Total Line
B98: Month | D98: Units Billed | E98: Rate | F98: Amount | H98: Units Billed | I98: Rate | J98: Amount | L98: Units Billed | M98: Rate | N98: Amount | P98: Amount
B100: January | D100: =D24+D43+D62+D81 -> 159246.8 | E100: =IF(D100<>0,F100/D100,0) -> 3.590301808 | F100: =F24+F43+F62+F81 -> 571744.074 | H100: =H24+H43+H62+H81 -> 160276.85 | I100: =IF(H100<>0,J100/H100,0) -> 0.7613443395 | J100: =J24+J43+J62+J81 -> 122025.8725 | L100: =L24+L43+L62+L81 -> 154943.41 | M100: =IF(L100<>0,N100/L100,0) -> 1.863904274 | N100: =N24+N43+N62+N81 -> 288799.6842 | P100: =J100+N100 -> 410825.5567
B101: February | D101: =D25+D44+D63+D82 -> 154881.69 | E101: 3.576514556 | F101: =F25+F44+F63+F82 -> 553936.6187 | H101: =H25+H44+H63+H82 -> 151672.46 | I101: 0.7586818925 | J101: =J25+J44+J63+J82 -> 115071.149 | L101: =L25+L44+L63+L82 -> 149682.26 | M101: 1.853210001 | N101: =N25+N44+N63+N82 -> 277392.6612 | P101: 392463.8102
B102: March | D102: 144730.13 | E102: 3.595732001 | F102: 520410.7599 | H102: 141803.42 | I102: 0.7598008073 | J102: 107742.353 | L102: 136654.76 | M102: 1.86127985 | N102: 254352.7512 | P102: 362095.1042
B103: April | D103: 124116.11 | E103: 3.581881476 | F103: 444569.1953 | H103: 122786.28 | I103: 0.7561857237 | J103: 92849.232 | L103: 116576.97 | M103: 1.856840947 | N103: 216464.8914 | P103: 309314.1234
B104: May | D104: 142311.77 | E104: 3.583854639 | F104: 510024.6971 | H104: 140628.09 | I104: 0.7580928426 | J104: 106609.1485 | L104: 133994.8 | M104: 1.860234099 | N104: 249261.696 | P104: 355870.8445
B105: June | D105: 169194.92 | E105: 3.588153306 | F105: 607097.3116 | H105: 169792.22 | I105: 0.7602837927 | J105: 129090.273 | L105: 162758.92 | M105: 1.863634205 | N105: 303323.0904 | P105: 432413.3634
B106: July | D106: 178112.83 | E106: 3.595101211 | F106: 640333.6509 | H106: 174839.59 | I106: 0.7608250139 | J106: 133022.3335 | L106: 168176.91 | M106: 1.863985931 | N106: 313479.3942 | P106: 446501.7277
B107: August | D107: 181694.63 | E107: 3.591030923 | F107: 652471.0349 | H107: 181400.84 | I107: 0.760838737 | J107: 138016.786 | L107: 174628.31 | M107: 1.86382026 | N107: 325475.7822 | P107: 463492.5682
B108: September | D108: 182526.68 | E108: 3.596422103 | F108: 656442.9864 | H108: 181442.81 | I108: 0.7598171374 | J108: 137863.3565 | L108: 172166.02 | M108: 1.865084599 | N108: 321104.1924 | P108: 458967.5489
B109: October | D109: 127560.36 | E109: 3.581191467 | F109: 456818.0728 | H109: 129836.07 | I109: 0.7574892362 | J109: 98349.4255 | L109: 123396.17 | M109: 1.859503706 | N109: 229455.6354 | P109: 327805.0609
B110: November | D110: 147831.66 | E110: 3.58631082 | F110: 530170.2818 | H110: 144720.36 | I110: 0.7579459725 | J110: 109690.214 | L110: 138922.83 | M110: 1.858131054 | N110: 258136.8246 | P110: 367827.0386
B111: December | D111: 145371.8 | E111: 3.586568743 | F111: 521385.954 | H111: 142516.58 | I111: 0.7580656721 | J111: 108036.927 | L111: 136697.57 | M111: 1.858586538 | N111: 254064.2634 | P111: 362101.1904
B113: Total | D113: =SUM(D100:D111) -> 1857579.38 | E113: =IF(D113<>0,F113/D113,0) -> 3.588220622 | F113: =SUM(F100:F111) -> 6665404.637 | H113: =SUM(H100:H111) -> 1841715.57 | I113: =IF(H113<>0,J113/H113,0) -> 0.7592741753 | J113: =SUM(J100:J111) -> 1398367.07 | L113: =SUM(L100:L111) -> 1768598.93 | M113: =IF(L113<>0,N113/L113,0) -> 1.860970744 | N113: =SUM(N100:N111) -> 3291310.867 | P113: =SUM(P100:P111) -> 4689677.937
N115: Low Voltage Switchgear Credit (if applicable) | P115: ='5. UTRs and Sub-Transmission'!E95 -> 0
N117: Total including deduction for Low Voltage Switchgear Credit | P117: =P113+P115 -> 4689677.937

Sheet 7. Current Wholesale
B13: The purpose of this sheet is to calculate the expected billing when current 2015 Uniform Transmission Rates are applied against historical 2014 transmission units.
B20: IESO | D20: Network | H20: Line Connection | L20: Transformation Connection | P20: Total Line
B22: Month | D22: Units Billed | E22: Rate | F22: Amount | H22: Units Billed | I22: Rate | J22: Amount | L22: Units Billed | M22: Rate | N22: Amount | P22: Amount
B24: January | D24: ='6. Historical Wholesale'!D24 -> 97249 | E24: ='5. UTRs and Sub-Transmission'!G22 -> 3.78 | F24: =D24*E24 -> 367601.22 | H24: ='6. Historical Wholesale'!H24 -> 104976 | I24: ='5. UTRs and Sub-Transmission'!G24 -> 0.86 | J24: =H24*I24 -> 90279.36 | L24: ='6. Historical Wholesale'!L24 -> 104976 | M24: ='5. UTRs and Sub-Transmission'!G26 -> 2 | N24: =L24*M24 -> 209952 | P24: =J24+N24 -> 300231.36
B25: February | D25: ='6. Historical Wholesale'!D25 -> 90964 | E25: =E24 -> 3.78 | F25: =D25*E25 -> 343843.92 | H25: ='6. Historical Wholesale'!H25 -> 96965 | I25: =I24 -> 0.86 | J25: =H25*I25 -> 83389.9 | L25: ='6. Historical Wholesale'!L25 -> 96965 | M25: =M24 -> 2 | N25: =L25*M25 -> 193930 | P25: 277319.9
B26: March | D26: ='6. Historical Wholesale'!D26 -> 89716 | E26: =E25 -> 3.78 | F26: 339126.48 | H26: ='6. Historical Wholesale'!H26 -> 91589 | I26: =I25 -> 0.86 | J26: 78766.54 | L26: ='6. Historical Wholesale'!L26 -> 91589 | M26: =M25 -> 2 | N26: 183178 | P26: 261944.54
B27: April | D27: ='6. Historical Wholesale'!D27 -> 74024 | E27: 3.78 | F27: 279810.72 | H27: ='6. Historical Wholesale'!H27 -> 76695 | I27: 0.86 | J27: 65957.7 | L27: ='6. Historical Wholesale'!L27 -> 76695 | M27: 2 | N27: 153390 | P27: 219347.7
B28: May | D28: ='6. Historical Wholesale'!D28 -> 85352 | E28: 3.78 | F28: 322630.56 | H28: ='6. Historical Wholesale'!H28 -> 89417 | I28: 0.86 | J28: 76898.62 | L28: ='6. Historical Wholesale'!L28 -> 89417 | M28: 2 | N28: 178834 | P28: 255732.62
B29: June | D29: ='6. Historical Wholesale'!D29 -> 102708 | E29: 3.78 | F29: 388236.24 | H29: ='6. Historical Wholesale'!H29 -> 110149 | I29: 0.86 | J29: 94728.14 | L29: ='6. Historical Wholesale'!L29 -> 110149 | M29: 2 | N29: 220298 | P29: 315026.14
B30: July | D30: ='6. Historical Wholesale'!D30 -> 110219 | E30: 3.78 | F30: 416627.82 | H30: ='6. Historical Wholesale'!H30 -> 113980 | I30: 0.86 | J30: 98022.8 | L30: ='6. Historical Wholesale'!L30 -> 113980 | M30: 2 | N30: 227960 | P30: 325982.8
B31: August | D31: ='6. Historical Wholesale'!D31 -> 111182 | E31: 3.78 | F31: 420267.96 | H31: ='6. Historical Wholesale'!H31 -> 118272 | I31: 0.86 | J31: 101713.92 | L31: ='6. Historical Wholesale'!L31 -> 118272 | M31: 2 | N31: 236544 | P31: 338257.92
B32: September | D32: ='6. Historical Wholesale'!D32 -> 113359 | E32: 3.78 | F32: 428497.02 | H32: ='6. Historical Wholesale'!H32 -> 117209 | I32: 0.86 | J32: 100799.74 | L32: ='6. Historical Wholesale'!L32 -> 117209 | M32: 2 | N32: 234418 | P32: 335217.74
B33: October | D33: ='6. Historical Wholesale'!D33 -> 75929 | E33: 3.78 | F33: 287011.62 | H33: ='6. Historical Wholesale'!H33 -> 82094 | I33: 0.86 | J33: 70600.84 | L33: ='6. Historical Wholesale'!L33 -> 82094 | M33: 2 | N33: 164188 | P33: 234788.84
B34: November | D34: ='6. Historical Wholesale'!D34 -> 89278 | E34: 3.78 | F34: 337470.84 | H34: ='6. Historical Wholesale'!H34 -> 91894 | I34: 0.86 | J34: 79028.84 | L34: ='6. Historical Wholesale'!L34 -> 91894 | M34: 2 | N34: 183788 | P34: 262816.84
B35: December | D35: ='6. Historical Wholesale'!D35 -> 87856 | E35: 3.78 | F35: 332095.68 | H35: ='6. Historical Wholesale'!H35 -> 90595 | I35: 0.86 | J35: 77911.7 | L35: ='6. Historical Wholesale'!L35 -> 90595 | M35: 2 | N35: 181190 | P35: 259101.7
B37: Total | D37: =SUM(D24:D35) -> 1127836 | E37: =IF(D37<>0,F37/D37,0) -> 3.78 | F37: =SUM(F24:F35) -> 4263220.08 | H37: =SUM(H24:H35) -> 1183835 | I37: =IF(H37<>0,J37/H37,0) -> 0.86 | J37: =SUM(J24:J35) -> 1018098.1 | L37: =SUM(L24:L35) -> 1183835 | M37: =IF(L37<>0,N37/L37,0) -> 2 | N37: =SUM(N24:N35) -> 2367670 | P37: =SUM(P24:P35) -> 3385768.1
B39: Hydro One | D39: Network | H39: Line Connection | L39: Transformation Connection | P39: Total Line
B41: Month | D41: Units Billed | E41: Rate | F41: Amount | H41: Units Billed | I41: Rate | J41: Amount | L41: Units Billed | M41: Rate | N41: Amount | P41: Amount
B43: January | D43: ='6. Historical Wholesale'!D43 -> 61997.8 | E43: ='5. UTRs and Sub-Transmission'!G35+'5. UTRs and Sub-Transmission'!G79 -> 3.4121 | F43: =D43*E43 -> 211542.6934 | H43: ='6. Historical Wholesale'!H43 -> 55300.85 | I43: ='5. UTRs and Sub-Transmission'!G37+'5. UTRs and Sub-Transmission'!G81 -> 0.7879 | J43: =H43*I43 -> 43571.53971 | L43: ='6. Historical Wholesale'!L43 -> 49967.41 | M43: ='5. UTRs and Sub-Transmission'!G39 -> 1.8018 | N43: =L43*M43 -> 90031.27934 | P43: =J43+N43 -> 133602.8191
B44: February | D44: ='6. Historical Wholesale'!D44 -> 63917.69 | E44: =E43 -> 3.4121 | F44: =D44*E44 -> 218093.55 | H44: ='6. Historical Wholesale'!H44 -> 54707.46 | I44: =I43 -> 0.7879 | J44: =H44*I44 -> 43104.00773 | L44: ='6. Historical Wholesale'!L44 -> 52717.26 | M44: =M43 -> 1.8018 | N44: =L44*M44 -> 94985.95907 | P44: 138089.9668
B45: March | D45: ='6. Historical Wholesale'!D45 -> 55014.13 | E45: =E44 -> 3.4121 | F45: 187713.713 | H45: ='6. Historical Wholesale'!H45 -> 50214.42 | I45: =I44 -> 0.7879 | J45: 39563.94152 | L45: ='6. Historical Wholesale'!L45 -> 45065.76 | M45: =M44 -> 1.8018 | N45: 81199.48637 | P45: 120763.4279
B46: April | D46: ='6. Historical Wholesale'!D46 -> 50092.11 | E46: 3.4121 | F46: 170919.2885 | H46: ='6. Historical Wholesale'!H46 -> 46091.28 | I46: 0.7879 | J46: 36315.31951 | L46: ='6. Historical Wholesale'!L46 -> 39881.97 | M46: =M45 -> 1.8018 | N46: 71859.33355 | P46: 108174.6531
B47: May | D47: ='6. Historical Wholesale'!D47 -> 56959.77 | E47: 3.4121 | F47: 194352.4312 | H47: ='6. Historical Wholesale'!H47 -> 51211.09 | I47: 0.7879 | J47: 40349.21781 | L47: ='6. Historical Wholesale'!L47 -> 44577.8 | M47: 1.8018 | N47: 80320.28004 | P47: 120669.4979
B48: June | D48: ='6. Historical Wholesale'!D48 -> 66486.92 | E48: 3.4121 | F48: 226860.0197 | H48: ='6. Historical Wholesale'!H48 -> 59643.22 | I48: 0.7879 | J48: 46992.89304 | L48: ='6. Historical Wholesale'!L48 -> 52609.92 | M48: 1.8018 | N48: 94792.55386 | P48: 141785.4469
B49: July | D49: ='6. Historical Wholesale'!D49 -> 67893.83 | E49: 3.4121 | F49: 231660.5373 | H49: ='6. Historical Wholesale'!H49 -> 60859.59 | I49: 0.7879 | J49: 47951.27096 | L49: ='6. Historical Wholesale'!L49 -> 54196.91 | M49: 1.8018 | N49: 97651.99244 | P49: 145603.2634
B50: August | D50: ='6. Historical Wholesale'!D50 -> 70512.63 | E50: 3.4121 | F50: 240596.1448 | H50: ='6. Historical Wholesale'!H50 -> 63128.84 | I50: 0.7879 | J50: 49739.21304 | L50: ='6. Historical Wholesale'!L50 -> 56356.31 | M50: 1.8018 | N50: 101542.7994 | P50: 151282.0124
B51: September | D51: ='6. Historical Wholesale'!D51 -> 69167.68 | E51: 3.4121 | F51: 236007.0409 | H51: ='6. Historical Wholesale'!H51 -> 64233.81 | I51: 0.7879 | J51: 50609.8189 | L51: ='6. Historical Wholesale'!L51 -> 54957.02 | M51: 1.8018 | N51: 99021.55864 | P51: 149631.3775
B52: October | D52: ='6. Historical Wholesale'!D52 -> 51631.36 | E52: 3.4121 | F52: 176171.3635 | H52: ='6. Historical Wholesale'!H52 -> 47742.07 | I52: 0.7879 | J52: 37615.97695 | L52: ='6. Historical Wholesale'!L52 -> 41302.17 | M52: 1.8018 | N52: 74418.24991 | P52: 112034.2269
B53: November | D53: ='6. Historical Wholesale'!D53 -> 58553.66 | E53: 3.4121 | F53: 199790.9433 | H53: ='6. Historical Wholesale'!H53 -> 52826.36 | I53: 0.7879 | J53: 41621.88904 | L53: ='6. Historical Wholesale'!L53 -> 47028.83 | M53: 1.8018 | N53: 84736.54589 | P53: 126358.4349
B54: December | D54: ='6. Historical Wholesale'!D54 -> 57515.8 | E54: 3.4121 | F54: 196249.6612 | H54: ='6. Historical Wholesale'!H54 -> 51921.58 | I54: 0.7879 | J54: 40909.01288 | L54: ='6. Historical Wholesale'!L54 -> 46102.57 | M54: 1.8018 | N54: 83067.61063 | P54: 123976.6235
B56: Total | D56: =SUM(D43:D54) -> 729743.38 | E56: =IF(D56<>0,F56/D56,0) -> 3.4121 | F56: =SUM(F43:F54) -> 2489957.387 | H56: =SUM(H43:H54) -> 657880.57 | I56: =IF(H56<>0,J56/H56,0) -> 0.7879 | J56: =SUM(J43:J54) -> 518344.1011 | L56: =SUM(L43:L54) -> 584763.93 | M56: =IF(L56<>0,N56/L56,0) -> 1.8018 | N56: =SUM(N43:N54) -> 1053627.649 | P56: =SUM(P43:P54) -> 1571971.75
B58: ='6. Historical Wholesale'!B58 -> Add Extra Host Here (I) | D58: Network | H58: Line Connection | L58: Transformation Connection | P58: Total Line
B60: Month | D60: Units Billed | E60: Rate | F60: Amount | H60: Units Billed | I60: Rate | J60: Amount | L60: Units Billed | M60: Rate | N60: Amount | P60: Amount
B62: January | D62: ='6. Historical Wholesale'!D62 -> 0 | E62: ='5. UTRs and Sub-Transmission'!G50 -> 0 | F62: =D62*E62 -> 0 | H62: ='6. Historical Wholesale'!H62 -> 0 | I62: ='5. UTRs and Sub-Transmission'!G52 -> 0 | J62: =H62*I62 -> 0 | L62: ='6. Historical Wholesale'!L62 -> 0 | M62: ='5. UTRs and Sub-Transmission'!G54 -> 0 | N62: =L62*M62 -> 0 | P62: =J62+N62 -> 0
B63: February | D63: ='6. Historical Wholesale'!D63 -> 0 | E63: =E62 -> 0 | F63: =D63*E63 -> 0 | H63: ='6. Historical Wholesale'!H63 -> 0 | I63: =I62 -> 0 | J63: =H63*I63 -> 0 | L63: ='6. Historical Wholesale'!L63 -> 0 | M63: =M62 -> 0 | N63: =L63*M63 -> 0 | P63: 0
B64: March | D64: ='6. Historical Wholesale'!D64 -> 0 | E64: =E63 -> 0 | F64: 0 | H64: ='6. Historical Wholesale'!H64 -> 0 | I64: =I63 -> 0 | J64: 0 | L64: ='6. Historical Wholesale'!L64 -> 0 | M64: =M63 -> 0 | N64: 0 | P64: 0
B65: April | D65: ='6. Historical Wholesale'!D65 -> 0 | E65: 0 | F65: 0 | H65: ='6. Historical Wholesale'!H65 -> 0 | I65: 0 | J65: 0 | L65: ='6. Historical Wholesale'!L65 -> 0 | M65: =M64 -> 0 | N65: 0 | P65: 0
B66: May | D66: ='6. Historical Wholesale'!D66 -> 0 | E66: 0 | F66: 0 | H66: ='6. Historical Wholesale'!H66 -> 0 | I66: 0 | J66: 0 | L66: ='6. Historical Wholesale'!L66 -> 0 | M66: 0 | N66: 0 | P66: 0
B67: June | D67: ='6. Historical Wholesale'!D67 -> 0 | E67: 0 | F67: 0 | H67: ='6. Historical Wholesale'!H67 -> 0 | I67: 0 | J67: 0 | L67: ='6. Historical Wholesale'!L67 -> 0 | M67: 0 | N67: 0 | P67: 0
B68: July | D68: ='6. Historical Wholesale'!D68 -> 0 | E68: 0 | F68: 0 | H68: ='6. Historical Wholesale'!H68 -> 0 | I68: 0 | J68: 0 | L68: ='6. Historical Wholesale'!L68 -> 0 | M68: 0 | N68: 0 | P68: 0
B69: August | D69: ='6. Historical Wholesale'!D69 -> 0 | E69: 0 | F69: 0 | H69: ='6. Historical Wholesale'!H69 -> 0 | I69: 0 | J69: 0 | L69: ='6. Historical Wholesale'!L69 -> 0 | M69: 0 | N69: 0 | P69: 0
B70: September | D70: ='6. Historical Wholesale'!D70 -> 0 | E70: 0 | F70: 0 | H70: ='6. Historical Wholesale'!H70 -> 0 | I70: 0 | J70: 0 | L70: ='6. Historical Wholesale'!L70 -> 0 | M70: 0 | N70: 0 | P70: 0
B71: October | D71: ='6. Historical Wholesale'!D71 -> 0 | E71: 0 | F71: 0 | H71: ='6. Historical Wholesale'!H71 -> 0 | I71: 0 | J71: 0 | L71: ='6. Historical Wholesale'!L71 -> 0 | M71: 0 | N71: 0 | P71: 0
B72: November | D72: ='6. Historical Wholesale'!D72 -> 0 | E72: 0 | F72: 0 | H72: ='6. Historical Wholesale'!H72 -> 0 | I72: 0 | J72: 0 | L72: ='6. Historical Wholesale'!L72 -> 0 | M72: 0 | N72: 0 | P72: 0
B73: December | D73: ='6. Historical Wholesale'!D73 -> 0 | E73: 0 | F73: 0 | H73: ='6. Historical Wholesale'!H73 -> 0 | I73: 0 | J73: 0 | L73: ='6. Historical Wholesale'!L73 -> 0 | M73: 0 | N73: 0 | P73: 0
B75: Total | D75: =SUM(D62:D73) -> 0 | E75: =IF(D75<>0,F75/D75,0) -> 0 | F75: =SUM(F62:F73) -> 0 | H75: =SUM(H62:H73) -> 0 | I75: =IF(H75<>0,J75/H75,0) -> 0 | J75: =SUM(J62:J73) -> 0 | L75: =SUM(L62:L73) -> 0 | M75: =IF(L75<>0,N75/L75,0) -> 0 | N75: =SUM(N62:N73) -> 0 | P75: =SUM(P62:P73) -> 0
B77: ='6. Historical Wholesale'!B77 -> Add Extra Host Here (II) | D77: Network | H77: Line Connection | L77: Transformation Connection | P77: Total Line
B79: Month | D79: Units Billed | E79: Rate | F79: Amount | H79: Units Billed | I79: Rate | J79: Amount | L79: Units Billed | M79: Rate | N79: Amount | P79: Amount
B81: January | D81: ='6. Historical Wholesale'!D81 -> 0 | E81: ='5. UTRs and Sub-Transmission'!G65 -> 0 | F81: =D81*E81 -> 0 | H81: ='6. Historical Wholesale'!H81 -> 0 | I81: ='5. UTRs and Sub-Transmission'!G67 -> 0 | J81: =H81*I81 -> 0 | L81: ='6. Historical Wholesale'!L81 -> 0 | M81: ='5. UTRs and Sub-Transmission'!G69 -> 0 | N81: =L81*M81 -> 0 | P81: =J81+N81 -> 0
B82: February | D82: ='6. Historical Wholesale'!D82 -> 0 | E82: =E81 -> 0 | F82: =D82*E82 -> 0 | H82: ='6. Historical Wholesale'!H82 -> 0 | I82: =I81 -> 0 | J82: =H82*I82 -> 0 | L82: ='6. Historical Wholesale'!L82 -> 0 | M82: =M81 -> 0 | N82: =L82*M82 -> 0 | P82: 0
B83: March | D83: ='6. Historical Wholesale'!D83 -> 0 | E83: =E82 -> 0 | F83: 0 | H83: ='6. Historical Wholesale'!H83 -> 0 | I83: =I82 -> 0 | J83: 0 | L83: ='6. Historical Wholesale'!L83 -> 0 | M83: =M82 -> 0 | N83: 0 | P83: 0
B84: April | D84: ='6. Historical Wholesale'!D84 -> 0 | E84: 0 | F84: 0 | H84: ='6. Historical Wholesale'!H84 -> 0 | I84: 0 | J84: 0 | L84: ='6. Historical Wholesale'!L84 -> 0 | M84: =M83 -> 0 | N84: 0 | P84: 0
B85: May | D85: ='6. Historical Wholesale'!D85 -> 0 | E85: 0 | F85: 0 | H85: ='6. Historical Wholesale'!H85 -> 0 | I85: 0 | J85: 0 | L85: ='6. Historical Wholesale'!L85 -> 0 | M85: 0 | N85: 0 | P85: 0
B86: June | D86: ='6. Historical Wholesale'!D86 -> 0 | E86: 0 | F86: 0 | H86: ='6. Historical Wholesale'!H86 -> 0 | I86: 0 | J86: 0 | L86: ='6. Historical Wholesale'!L86 -> 0 | M86: 0 | N86: 0 | P86: 0
B87: July | D87: ='6. Historical Wholesale'!D87 -> 0 | E87: 0 | F87: 0 | H87: ='6. Historical Wholesale'!H87 -> 0 | I87: 0 | J87: 0 | L87: ='6. Historical Wholesale'!L87 -> 0 | M87: 0 | N87: 0 | P87: 0
B88: August | D88: ='6. Historical Wholesale'!D88 -> 0 | E88: 0 | F88: 0 | H88: ='6. Historical Wholesale'!H88 -> 0 | I88: 0 | J88: 0 | L88: ='6. Historical Wholesale'!L88 -> 0 | M88: 0 | N88: 0 | P88: 0
B89: September | D89: ='6. Historical Wholesale'!D89 -> 0 | E89: 0 | F89: 0 | H89: ='6. Historical Wholesale'!H89 -> 0 | I89: 0 | J89: 0 | L89: ='6. Historical Wholesale'!L89 -> 0 | M89: 0 | N89: 0 | P89: 0
B90: October | D90: ='6. Historical Wholesale'!D90 -> 0 | E90: 0 | F90: 0 | H90: ='6. Historical Wholesale'!H90 -> 0 | I90: 0 | J90: 0 | L90: ='6. Historical Wholesale'!L90 -> 0 | M90: 0 | N90: 0 | P90: 0
B91: November | D91: ='6. Historical Wholesale'!D91 -> 0 | E91: 0 | F91: 0 | H91: ='6. Historical Wholesale'!H91 -> 0 | I91: 0 | J91: 0 | L91: ='6. Historical Wholesale'!L91 -> 0 | M91: 0 | N91: 0 | P91: 0
B92: December | D92: ='6. Historical Wholesale'!D92 -> 0 | E92: 0 | F92: 0 | H92: ='6. Historical Wholesale'!H92 -> 0 | I92: 0 | J92: 0 | L92: ='6. Historical Wholesale'!L92 -> 0 | M92: 0 | N92: 0 | P92: 0
B94: Total | D94: =SUM(D81:D92) -> 0 | E94: =IF(D94<>0,F94/D94,0) -> 0 | F94: =SUM(F81:F92) -> 0 | H94: =SUM(H81:H92) -> 0 | I94: =IF(H94<>0,J94/H94,0) -> 0 | J94: =SUM(J81:J92) -> 0 | L94: =SUM(L81:L92) -> 0 | M94: =IF(L94<>0,N94/L94,0) -> 0 | N94: =SUM(N81:N92) -> 0 | P94: =SUM(P81:P92) -> 0
B96: Total | D96: Network | H96: Line Connection | L96: Transformation Connection | P96: Total Line
B98: Month | D98: Units Billed | E98: Rate | F98: Amount | H98: Units Billed | I98: Rate | J98: Amount | L98: Units Billed | M98: Rate | N98: Amount | P98: Amount
B100: January | D100: =D24+D43+D62+D81 -> 159246.8 | E100: =IF(D100<>0,F100/D100,0) -> 3.636769551 | F100: =F24+F43+F62+F81 -> 579143.9134 | H100: =H24+H43+H62+H81 -> 160276.85 | I100: =IF(H100<>0,J100/H100,0) -> 0.8351230993 | J100: =J24+J43+J62+J81 -> 133850.8997 | L100: =L24+L43+L62+L81 -> 154943.41 | M100: =IF(L100<>0,N100/L100,0) -> 1.936082853 | N100: =N24+N43+N62+N81 -> 299983.2793 | P100: =J100+N100 -> 433834.1791
B101: February | D101: =D25+D44+D63+D82 -> 154881.69 | E101: 3.628172381 | F101: =F25+F44+F63+F82 -> 561937.47 | H101: =H25+H44+H63+H82 -> 151672.46 | I101: 0.8339939085 | J101: =J25+J44+J63+J82 -> 126493.9077 | L101: =L25+L44+L63+L82 -> 149682.26 | M101: 1.930195062 | N101: =N25+N44+N63+N82 -> 288915.9591 | P101: 415409.8668
B102: March | D102: 144730.13 | E102: 3.640155598 | F102: 526840.193 | H102: 141803.42 | I102: 0.8344684601 | J102: 118330.4815 | L102: 136654.76 | M102: 1.934637962 | N102: 264377.4864 | P102: 382707.9679
B103: April | D103: 124116.11 | E103: 3.631518975 | F103: 450730.0085 | H103: 122786.28 | I103: 0.8329352393 | J103: 102273.0195 | L103: 116576.97 | M103: 1.932194099 | N103: 225249.3335 | P103: 327522.3531
B104: May | D104: 142311.77 | E104: 3.632749359 | F104: 516982.9912 | H104: 140628.09 | I104: 0.8337440821 | J104: 117247.8378 | L104: 133994.8 | M104: 1.934062218 | N104: 259154.28 | P104: 376402.1179
B105: June | D105: 169194.92 | E105: 3.635429833 | F105: 615096.2597 | H105: 169792.22 | I105: 0.8346733027 | J105: 141721.033 | L105: 162758.92 | M105: 1.935934165 | N105: 315090.5539 | P105: 456811.5869
B106: July | D106: 178112.83 | E106: 3.639762264 | F106: 648288.3573 | H106: 174839.59 | I106: 0.8349028441 | J106: 145974.071 | L106: 168176.91 | M106: 1.93612781 | N106: 325611.9924 | P106: 471586.0634
B107: August | D107: 181694.63 | E107: 3.637224198 | F107: 660864.1048 | H107: 181400.84 | I107: 0.8349086643 | J107: 151453.133 | L107: 174628.31 | M107: 1.936036599 | N107: 338086.7994 | P107: 489539.9324
B108: September | D108: 182526.68 | E108: 3.640585918 | F108: 664504.0609 | H108: 181442.81 | I108: 0.8344753859 | J108: 151409.5589 | L108: 172166.02 | M108: 1.936732688 | N108: 333439.5586 | P108: 484849.1175
B109: October | D109: 127560.36 | E109: 3.631088713 | F109: 463182.9835 | H109: 129836.07 | I109: 0.833488082 | J109: 108216.817 | L109: 123396.17 | M109: 1.933660096 | N109: 238606.2499 | P109: 346823.0669
B110: November | D110: 147831.66 | E110: 3.634280933 | F110: 537261.7833 | H110: 144720.36 | I110: 0.8336817919 | J110: 120650.729 | L110: 138922.83 | M110: 1.932904375 | N110: 268524.5459 | P110: 389175.2749
B111: December | D111: 145371.8 | E111: 3.634441764 | F111: 528345.3412 | H111: 142516.58 | I111: 0.8337325586 | J111: 118820.7129 | L111: 136697.57 | M111: 1.933155144 | N111: 264257.6106 | P111: 383078.3235
B113: Total | D113: =SUM(D100:D111) -> 1857579.38 | E113: =IF(D113<>0,F113/D113,0) -> 3.635471808 | F113: =SUM(F100:F111) -> 6753177.467 | H113: =SUM(H100:H111) -> 1841715.57 | I113: =IF(H113<>0,J113/H113,0) -> 0.8342451061 | J113: =SUM(J100:J111) -> 1536442.201 | L113: =SUM(L100:L111) -> 1768598.93 | M113: =IF(L113<>0,N113/L113,0) -> 1.934467782 | N113: =SUM(N100:N111) -> 3421297.649 | P113: =SUM(P100:P111) -> 4957739.85
N115: Low Voltage Switchgear Credit (if applicable) | P115: ='5. UTRs and Sub-Transmission'!G95 -> 0
N117: Total including deduction for Low Voltage Switchgear Credit | P117: =P113+P115 -> 4957739.85

Sheet 8. Forecast Wholesale
B13: The purpose of this sheet is to calculate the expected billing when forecasted 2016 Uniform Transmission Rates are applied against historical 2014 transmission units.
B20: IESO | D20: Network | H20: Line Connection | L20: Transformation Connection | P20: Total Line
B22: Month | D22: Units Billed | E22: Rate | F22: Amount | H22: Units Billed | I22: Rate | J22: Amount | L22: Units Billed | M22: Rate | N22: Amount | P22: Amount
B24: January | D24: ='6. Historical Wholesale'!D24 -> 97249 | E24: ='5. UTRs and Sub-Transmission'!I22 -> 3.78 | F24: =D24*E24 -> 367601.22 | H24: ='6. Historical Wholesale'!H24 -> 104976 | I24: ='5. UTRs and Sub-Transmission'!I24 -> 0.86 | J24: =H24*I24 -> 90279.36 | L24: ='6. Historical Wholesale'!L24 -> 104976 | M24: ='5. UTRs and Sub-Transmission'!I26 -> 2 | N24: =L24*M24 -> 209952 | P24: =J24+N24 -> 300231.36
B25: February | D25: ='6. Historical Wholesale'!D25 -> 90964 | E25: =E24 -> 3.78 | F25: 343843.92 | H25: ='6. Historical Wholesale'!H25 -> 96965 | I25: =I24 -> 0.86 | J25: 83389.9 | L25: ='6. Historical Wholesale'!L25 -> 96965 | M25: =M24 -> 2 | N25: 193930 | P25: 277319.9
B26: March | D26: ='6. Historical Wholesale'!D26 -> 89716 | E26: 3.78 | F26: 339126.48 | H26: ='6. Historical Wholesale'!H26 -> 91589 | I26: 0.86 | J26: 78766.54 | L26: ='6. Historical Wholesale'!L26 -> 91589 | M26: 2 | N26: 183178 | P26: 261944.54
B27: April | D27: ='6. Historical Wholesale'!D27 -> 74024 | E27: 3.78 | F27: 279810.72 | H27: ='6. Historical Wholesale'!H27 -> 76695 | I27: 0.86 | J27: 65957.7 | L27: ='6. Historical Wholesale'!L27 -> 76695 | M27: 2 | N27: 153390 | P27: 219347.7
B28: May | D28: ='6. Historical Wholesale'!D28 -> 85352 | E28: 3.78 | F28: 322630.56 | H28: ='6. Historical Wholesale'!H28 -> 89417 | I28: 0.86 | J28: 76898.62 | L28: ='6. Historical Wholesale'!L28 -> 89417 | M28: 2 | N28: 178834 | P28: 255732.62
B29: June | D29: ='6. Historical Wholesale'!D29 -> 102708 | E29: 3.78 | F29: 388236.24 | H29: ='6. Historical Wholesale'!H29 -> 110149 | I29: 0.86 | J29: 94728.14 | L29: ='6. Historical Wholesale'!L29 -> 110149 | M29: 2 | N29: 220298 | P29: 315026.14
B30: July | D30: ='6. Historical Wholesale'!D30 -> 110219 | E30: 3.78 | F30: 416627.82 | H30: ='6. Historical Wholesale'!H30 -> 113980 | I30: 0.86 | J30: 98022.8 | L30: ='6. Historical Wholesale'!L30 -> 113980 | M30: 2 | N30: 227960 | P30: 325982.8
B31: August | D31: ='6. Historical Wholesale'!D31 -> 111182 | E31: 3.78 | F31: 420267.96 | H31: ='6. Historical Wholesale'!H31 -> 118272 | I31: 0.86 | J31: 101713.92 | L31: ='6. Historical Wholesale'!L31 -> 118272 | M31: 2 | N31: 236544 | P31: 338257.92
B32: September | D32: ='6. Historical Wholesale'!D32 -> 113359 | E32: 3.78 | F32: 428497.02 | H32: ='6. Historical Wholesale'!H32 -> 117209 | I32: 0.86 | J32: 100799.74 | L32: ='6. Historical Wholesale'!L32 -> 117209 | M32: 2 | N32: 234418 | P32: 335217.74
B33: October | D33: ='6. Historical Wholesale'!D33 -> 75929 | E33: 3.78 | F33: 287011.62 | H33: ='6. Historical Wholesale'!H33 -> 82094 | I33: 0.86 | J33: 70600.84 | L33: ='6. Historical Wholesale'!L33 -> 82094 | M33: 2 | N33: 164188 | P33: 234788.84
B34: November | D34: ='6. Historical Wholesale'!D34 -> 89278 | E34: 3.78 | F34: 337470.84 | H34: ='6. Historical Wholesale'!H34 -> 91894 | I34: 0.86 | J34: 79028.84 | L34: ='6. Historical Wholesale'!L34 -> 91894 | M34: 2 | N34: 183788 | P34: 262816.84
B35: December | D35: ='6. Historical Wholesale'!D35 -> 87856 | E35: 3.78 | F35: 332095.68 | H35: ='6. Historical Wholesale'!H35 -> 90595 | I35: 0.86 | J35: 77911.7 | L35: ='6. Historical Wholesale'!L35 -> 90595 | M35: 2 | N35: 181190 | P35: 259101.7
B37: Total | D37: =SUM(D24:D35) -> 1127836 | E37: =IF(D37<>0,F37/D37,0) -> 3.78 | F37: =SUM(F24:F35) -> 4263220.08 | H37: =SUM(H24:H35) -> 1183835 | I37: =IF(H37<>0,J37/H37,0) -> 0.86 | J37: =SUM(J24:J35) -> 1018098.1 | L37: =SUM(L24:L35) -> 1183835 | M37: =IF(L37<>0,N37/L37,0) -> 2 | N37: =SUM(N24:N35) -> 2367670 | P37: =SUM(P24:P35) -> 3385768.1
B39: Hydro One | D39: Network | H39: Line Connection | L39: Transformation Connection | P39: Total Line
B41: Month | D41: Units Billed | E41: Rate | F41: Amount | H41: Units Billed | I41: Rate | J41: Amount | L41: Units Billed | M41: Rate | N41: Amount | P41: Amount
B43: January | D43: ='6. Historical Wholesale'!D43 -> 61997.8 | E43: ='5. UTRs and Sub-Transmission'!I35+'5. UTRs and Sub-Transmission'!I79 -> 3.4121 | F43: =D43*E43 -> 211542.6934 | H43: ='6. Historical Wholesale'!H43 -> 55300.85 | I43: ='5. UTRs and Sub-Transmission'!I37+'5. UTRs and Sub-Transmission'!I81 -> 0.7879 | J43: =H43*I43 -> 43571.53971 | L43: ='6. Historical Wholesale'!L43 -> 49967.41 | M43: ='5. UTRs and Sub-Transmission'!I39 -> 1.8018 | N43: =L43*M43 -> 90031.27934 | P43: =J43+N43 -> 133602.8191
B44: February | D44: ='6. Historical Wholesale'!D44 -> 63917.69 | E44: =E43 -> 3.4121 | F44: 218093.55 | H44: ='6. Historical Wholesale'!H44 -> 54707.46 | I44: =I43 -> 0.7879 | J44: 43104.00773 | L44: ='6. Historical Wholesale'!L44 -> 52717.26 | M44: =M43 -> 1.8018 | N44: 94985.95907 | P44: 138089.9668
B45: March | D45: ='6. Historical Wholesale'!D45 -> 55014.13 | E45: 3.4121 | F45: 187713.713 | H45: ='6. Historical Wholesale'!H45 -> 50214.42 | I45: 0.7879 | J45: 39563.94152 | L45: ='6. Historical Wholesale'!L45 -> 45065.76 | M45: 1.8018 | N45: 81199.48637 | P45: 120763.4279
B46: April | D46: ='6. Historical Wholesale'!D46 -> 50092.11 | E46: 3.4121 | F46: 170919.2885 | H46: ='6. Historical Wholesale'!H46 -> 46091.28 | I46: 0.7879 | J46: 36315.31951 | L46: ='6. Historical Wholesale'!L46 -> 39881.97 | M46: 1.8018 | N46: 71859.33355 | P46: 108174.6531
B47: May | D47: ='6. Historical Wholesale'!D47 -> 56959.77 | E47: 3.4121 | F47: 194352.4312 | H47: ='6. Historical Wholesale'!H47 -> 51211.09 | I47: 0.7879 | J47: 40349.21781 | L47: ='6. Historical Wholesale'!L47 -> 44577.8 | M47: 1.8018 | N47: 80320.28004 | P47: 120669.4979
B48: June | D48: ='6. Historical Wholesale'!D48 -> 66486.92 | E48: 3.4121 | F48: 226860.0197 | H48: ='6. Historical Wholesale'!H48 -> 59643.22 | I48: 0.7879 | J48: 46992.89304 | L48: ='6. Historical Wholesale'!L48 -> 52609.92 | M48: 1.8018 | N48: 94792.55386 | P48: 141785.4469
B49: July | D49: ='6. Historical Wholesale'!D49 -> 67893.83 | E49: 3.4121 | F49: 231660.5373 | H49: ='6. Historical Wholesale'!H49 -> 60859.59 | I49: 0.7879 | J49: 47951.27096 | L49: ='6. Historical Wholesale'!L49 -> 54196.91 | M49: 1.8018 | N49: 97651.99244 | P49: 145603.2634
B50: August | D50: ='6. Historical Wholesale'!D50 -> 70512.63 | E50: 3.4121 | F50: 240596.1448 | H50: ='6. Historical Wholesale'!H50 -> 63128.84 | I50: 0.7879 | J50: 49739.21304 | L50: ='6. Historical Wholesale'!L50 -> 56356.31 | M50: 1.8018 | N50: 101542.7994 | P50: 151282.0124
B51: September | D51: ='6. Historical Wholesale'!D51 -> 69167.68 | E51: 3.4121 | F51: 236007.0409 | H51: ='6. Historical Wholesale'!H51 -> 64233.81 | I51: 0.7879 | J51: 50609.8189 | L51: ='6. Historical Wholesale'!L51 -> 54957.02 | M51: 1.8018 | N51: 99021.55864 | P51: 149631.3775
B52: October | D52: ='6. Historical Wholesale'!D52 -> 51631.36 | E52: 3.4121 | F52: 176171.3635 | H52: ='6. Historical Wholesale'!H52 -> 47742.07 | I52: 0.7879 | J52: 37615.97695 | L52: ='6. Historical Wholesale'!L52 -> 41302.17 | M52: 1.8018 | N52: 74418.24991 | P52: 112034.2269
B53: November | D53: ='6. Historical Wholesale'!D53 -> 58553.66 | E53: 3.4121 | F53: 199790.9433 | H53: ='6. Historical Wholesale'!H53 -> 52826.36 | I53: 0.7879 | J53: 41621.88904 | L53: ='6. Historical Wholesale'!L53 -> 47028.83 | M53: 1.8018 | N53: 84736.54589 | P53: 126358.4349
B54: December | D54: ='6. Historical Wholesale'!D54 -> 57515.8 | E54: 3.4121 | F54: 196249.6612 | H54: ='6. Historical Wholesale'!H54 -> 51921.58 | I54: 0.7879 | J54: 40909.01288 | L54: ='6. Historical Wholesale'!L54 -> 46102.57 | M54: 1.8018 | N54: 83067.61063 | P54: 123976.6235
B56: Total | D56: =SUM(D43:D54) -> 729743.38 | E56: =IF(D56<>0,F56/D56,0) -> 3.4121 | F56: =SUM(F43:F54) -> 2489957.387 | H56: =SUM(H43:H54) -> 657880.57 | I56: =IF(H56<>0,J56/H56,0) -> 0.7879 | J56: =SUM(J43:J54) -> 518344.1011 | L56: =SUM(L43:L54) -> 584763.93 | M56: =IF(L56<>0,N56/L56,0) -> 1.8018 | N56: =SUM(N43:N54) -> 1053627.649 | P56: =SUM(P43:P54) -> 1571971.75
B58: ='6. Historical Wholesale'!B58 -> Add Extra Host Here (I) | D58: Network | H58: Line Connection | L58: Transformation Connection | P58: Total Line
B60: Month | D60: Units Billed | E60: Rate | F60: Amount | H60: Units Billed | I60: Rate | J60: Amount | L60: Units Billed | M60: Rate | N60: Amount | P60: Amount
B62: January | D62: ='6. Historical Wholesale'!D62 -> 0 | E62: ='5. UTRs and Sub-Transmission'!I50 -> 0 | F62: =D62*E62 -> 0 | H62: ='6. Historical Wholesale'!H62 -> 0 | I62: ='5. UTRs and Sub-Transmission'!I52 -> 0 | J62: =H62*I62 -> 0 | L62: ='6. Historical Wholesale'!L62 -> 0 | M62: ='5. UTRs and Sub-Transmission'!I54 -> 0 | N62: =L62*M62 -> 0 | P62: =J62+N62 -> 0
B63: February | D63: ='6. Historical Wholesale'!D63 -> 0 | E63: =E62 -> 0 | F63: 0 | H63: ='6. Historical Wholesale'!H63 -> 0 | I63: =I62 -> 0 | J63: 0 | L63: ='6. Historical Wholesale'!L63 -> 0 | M63: =M62 -> 0 | N63: 0 | P63: 0
B64: March | D64: ='6. Historical Wholesale'!D64 -> 0 | E64: 0 | F64: 0 | H64: ='6. Historical Wholesale'!H64 -> 0 | I64: 0 | J64: 0 | L64: ='6. Historical Wholesale'!L64 -> 0 | M64: 0 | N64: 0 | P64: 0
B65: April | D65: ='6. Historical Wholesale'!D65 -> 0 | E65: 0 | F65: 0 | H65: ='6. Historical Wholesale'!H65 -> 0 | I65: 0 | J65: 0 | L65: ='6. Historical Wholesale'!L65 -> 0 | M65: 0 | N65: 0 | P65: 0
B66: May | D66: ='6. Historical Wholesale'!D66 -> 0 | E66: 0 | F66: 0 | H66: ='6. Historical Wholesale'!H66 -> 0 | I66: 0 | J66: 0 | L66: ='6. Historical Wholesale'!L66 -> 0 | M66: 0 | N66: 0 | P66: 0
B67: June | D67: ='6. Historical Wholesale'!D67 -> 0 | E67: 0 | F67: 0 | H67: ='6. Historical Wholesale'!H67 -> 0 | I67: 0 | J67: 0 | L67: ='6. Historical Wholesale'!L67 -> 0 | M67: 0 | N67: 0 | P67: 0
B68: July | D68: ='6. Historical Wholesale'!D68 -> 0 | E68: 0 | F68: 0 | H68: ='6. Historical Wholesale'!H68 -> 0 | I68: 0 | J68: 0 | L68: ='6. Historical Wholesale'!L68 -> 0 | M68: 0 | N68: 0 | P68: 0
B69: August | D69: ='6. Historical Wholesale'!D69 -> 0 | E69: 0 | F69: 0 | H69: ='6. Historical Wholesale'!H69 -> 0 | I69: 0 | J69: 0 | L69: ='6. Historical Wholesale'!L69 -> 0 | M69: 0 | N69: 0 | P69: 0
B70: September | D70: ='6. Historical Wholesale'!D70 -> 0 | E70: 0 | F70: 0 | H70: ='6. Historical Wholesale'!H70 -> 0 | I70: 0 | J70: 0 | L70: ='6. Historical Wholesale'!L70 -> 0 | M70: 0 | N70: 0 | P70: 0
B71: October | D71: ='6. Historical Wholesale'!D71 -> 0 | E71: 0 | F71: 0 | H71: ='6. Historical Wholesale'!H71 -> 0 | I71: 0 | J71: 0 | L71: ='6. Historical Wholesale'!L71 -> 0 | M71: 0 | N71: 0 | P71: 0
B72: November | D72: ='6. Historical Wholesale'!D72 -> 0 | E72: 0 | F72: 0 | H72: ='6. Historical Wholesale'!H72 -> 0 | I72: 0 | J72: 0 | L72: ='6. Historical Wholesale'!L72 -> 0 | M72: 0 | N72: 0 | P72: 0
B73: December | D73: ='6. Historical Wholesale'!D73 -> 0 | E73: 0 | F73: 0 | H73: ='6. Historical Wholesale'!H73 -> 0 | I73: 0 | J73: 0 | L73: ='6. Historical Wholesale'!L73 -> 0 | M73: 0 | N73: 0 | P73: 0
B75: Total | D75: =SUM(D62:D73) -> 0 | E75: =IF(D75<>0,F75/D75,0) -> 0 | F75: =SUM(F62:F73) -> 0 | H75: =SUM(H62:H73) -> 0 | I75: =IF(H75<>0,J75/H75,0) -> 0 | J75: =SUM(J62:J73) -> 0 | L75: =SUM(L62:L73) -> 0 | M75: =IF(L75<>0,N75/L75,0) -> 0 | N75: =SUM(N62:N73) -> 0 | P75: =SUM(P62:P73) -> 0
B77: ='6. Historical Wholesale'!B77 -> Add Extra Host Here (II) | D77: Network | H77: Line Connection | L77: Transformation Connection | P77: Total Line
B79: Month | D79: Units Billed | E79: Rate | F79: Amount | H79: Units Billed | I79: Rate | J79: Amount | L79: Units Billed | M79: Rate | N79: Amount | P79: Amount
B81: January | D81: ='6. Historical Wholesale'!D81 -> 0 | E81: ='5. UTRs and Sub-Transmission'!I65 -> 0 | F81: =D81*E81 -> 0 | H81: ='6. Historical Wholesale'!H81 -> 0 | I81: ='5. UTRs and Sub-Transmission'!I67 -> 0 | J81: =H81*I81 -> 0 | L81: ='6. Historical Wholesale'!L81 -> 0 | M81: ='5. UTRs and Sub-Transmission'!I69 -> 0 | N81: =L81*M81 -> 0 | P81: =J81+N81 -> 0
B82: February | D82: ='6. Historical Wholesale'!D82 -> 0 | E82: =E81 -> 0 | F82: 0 | H82: ='6. Historical Wholesale'!H82 -> 0 | I82: =I81 -> 0 | J82: 0 | L82: ='6. Historical Wholesale'!L82 -> 0 | M82: =M81 -> 0 | N82: 0 | P82: 0
B83: March | D83: ='6. Historical Wholesale'!D83 -> 0 | E83: 0 | F83: 0 | H83: ='6. Historical Wholesale'!H83 -> 0 | I83: 0 | J83: 0 | L83: ='6. Historical Wholesale'!L83 -> 0 | M83: 0 | N83: 0 | P83: 0
B84: April | D84: ='6. Historical Wholesale'!D84 -> 0 | E84: 0 | F84: 0 | H84: ='6. Historical Wholesale'!H84 -> 0 | I84: 0 | J84: 0 | L84: ='6. Historical Wholesale'!L84 -> 0 | M84: 0 | N84: 0 | P84: 0
B85: May | D85: ='6. Historical Wholesale'!D85 -> 0 | E85: 0 | F85: 0 | H85: ='6. Historical Wholesale'!H85 -> 0 | I85: 0 | J85: 0 | L85: ='6. Historical Wholesale'!L85 -> 0 | M85: 0 | N85: 0 | P85: 0
B86: June | D86: ='6. Historical Wholesale'!D86 -> 0 | E86: 0 | F86: 0 | H86: ='6. Historical Wholesale'!H86 -> 0 | I86: 0 | J86: 0 | L86: ='6. Historical Wholesale'!L86 -> 0 | M86: 0 | N86: 0 | P86: 0
B87: July | D87: ='6. Historical Wholesale'!D87 -> 0 | E87: 0 | F87: 0 | H87: ='6. Historical Wholesale'!H87 -> 0 | I87: 0 | J87: 0 | L87: ='6. Historical Wholesale'!L87 -> 0 | M87: 0 | N87: 0 | P87: 0
B88: August | D88: ='6. Historical Wholesale'!D88 -> 0 | E88: 0 | F88: 0 | H88: ='6. Historical Wholesale'!H88 -> 0 | I88: 0 | J88: 0 | L88: ='6. Historical Wholesale'!L88 -> 0 | M88: 0 | N88: 0 | P88: 0
B89: September | D89: ='6. Historical Wholesale'!D89 -> 0 | E89: 0 | F89: 0 | H89: ='6. Historical Wholesale'!H89 -> 0 | I89: 0 | J89: 0 | L89: ='6. Historical Wholesale'!L89 -> 0 | M89: 0 | N89: 0 | P89: 0
B90: October | D90: ='6. Historical Wholesale'!D90 -> 0 | E90: 0 | F90: 0 | H90: ='6. Historical Wholesale'!H90 -> 0 | I90: 0 | J90: 0 | L90: ='6. Historical Wholesale'!L90 -> 0 | M90: 0 | N90: 0 | P90: 0
B91: November | D91: ='6. Historical Wholesale'!D91 -> 0 | E91: 0 | F91: 0 | H91: ='6. Historical Wholesale'!H91 -> 0 | I91: 0 | J91: 0 | L91: ='6. Historical Wholesale'!L91 -> 0 | M91: 0 | N91: 0 | P91: 0
B92: December | D92: ='6. Historical Wholesale'!D92 -> 0 | E92: 0 | F92: 0 | H92: ='6. Historical Wholesale'!H92 -> 0 | I92: 0 | J92: 0 | L92: ='6. Historical Wholesale'!L92 -> 0 | M92: 0 | N92: 0 | P92: 0
B94: Total | D94: =SUM(D81:D92) -> 0 | E94: =IF(D94<>0,F94/D94,0) -> 0 | F94: =SUM(F81:F92) -> 0 | H94: =SUM(H81:H92) -> 0 | I94: =IF(H94<>0,J94/H94,0) -> 0 | J94: =SUM(J81:J92) -> 0 | L94: =SUM(L81:L92) -> 0 | M94: =IF(L94<>0,N94/L94,0) -> 0 | N94: =SUM(N81:N92) -> 0 | P94: =SUM(P81:P92) -> 0
B96: Total | D96: Network | H96: Line Connection | L96: Transformation Connection | P96: Total Line
B98: Month | D98: Units Billed | E98: Rate | F98: Amount | H98: Units Billed | I98: Rate | J98: Amount | L98: Units Billed | M98: Rate | N98: Amount | P98: Amount
B100: January | D100: =D24+D43+D62+D81 -> 159246.8 | E100: =IF(D100<>0,F100/D100,0) -> 3.636769551 | F100: =F24+F43+F62+F81 -> 579143.9134 | H100: =H24+H43+H62+H81 -> 160276.85 | I100: =IF(H100<>0,J100/H100,0) -> 0.8351230993 | J100: =J24+J43+J62+J81 -> 133850.8997 | L100: =L24+L43+L62+L81 -> 154943.41 | M100: =IF(L100<>0,N100/L100,0) -> 1.936082853 | N100: =N24+N43+N62+N81 -> 299983.2793 | P100: =J100+N100 -> 433834.1791
B101: February | D101: =D25+D44+D63+D82 -> 154881.69 | E101: 3.628172381 | F101: 561937.47 | H101: =H25+H44+H63+H82 -> 151672.46 | I101: 0.8339939085 | J101: =J25+J44+J63+J82 -> 126493.9077 | L101: =L25+L44+L63+L82 -> 149682.26 | M101: 1.930195062 | N101: =N25+N44+N63+N82 -> 288915.9591 | P101: 415409.8668
B102: March | D102: 144730.13 | E102: 3.640155598 | F102: 526840.193 | H102: =H26+H45+H64+H83 -> 141803.42 | I102: 0.8344684601 | J102: =J26+J45+J64+J83 -> 118330.4815 | L102: =L26+L45+L64+L83 -> 136654.76 | M102: 1.934637962 | N102: =N26+N45+N64+N83 -> 264377.4864 | P102: 382707.9679
B103: April | D103: 124116.11 | E103: 3.631518975 | F103: 450730.0085 | H103: =H27+H46+H65+H84 -> 122786.28 | I103: 0.8329352393 | J103: =J27+J46+J65+J84 -> 102273.0195 | L103: =L27+L46+L65+L84 -> 116576.97 | M103: 1.932194099 | N103: =N27+N46+N65+N84 -> 225249.3335 | P103: 327522.3531
B104: May | D104: 142311.77 | E104: 3.632749359 | F104: 516982.9912 | H104: =H28+H47+H66+H85 -> 140628.09 | I104: 0.8337440821 | J104: =J28+J47+J66+J85 -> 117247.8378 | L104: =L28+L47+L66+L85 -> 133994.8 | M104: 1.934062218 | N104: =N28+N47+N66+N85 -> 259154.28 | P104: 376402.1179
B105: June | D105: 169194.92 | E105: 3.635429833 | F105: 615096.2597 | H105: =H29+H48+H67+H86 -> 169792.22 | I105: 0.8346733027 | J105: =J29+J48+J67+J86 -> 141721.033 | L105: =L29+L48+L67+L86 -> 162758.92 | M105: 1.935934165 | N105: =N29+N48+N67+N86 -> 315090.5539 | P105: 456811.5869
B106: July | D106: 178112.83 | E106: 3.639762264 | F106: 648288.3573 | H106: =H30+H49+H68+H87 -> 174839.59 | I106: 0.8349028441 | J106: =J30+J49+J68+J87 -> 145974.071 | L106: =L30+L49+L68+L87 -> 168176.91 | M106: 1.93612781 | N106: =N30+N49+N68+N87 -> 325611.9924 | P106: 471586.0634
B107: August | D107: 181694.63 | E107: 3.637224198 | F107: 660864.1048 | H107: =H31+H50+H69+H88 -> 181400.84 | I107: 0.8349086643 | J107: =J31+J50+J69+J88 -> 151453.133 | L107: =L31+L50+L69+L88 -> 174628.31 | M107: 1.936036599 | N107: =N31+N50+N69+N88 -> 338086.7994 | P107: 489539.9324
B108: September | D108: 182526.68 | E108: 3.640585918 | F108: 664504.0609 | H108: =H32+H51+H70+H89 -> 181442.81 | I108: 0.8344753859 | J108: =J32+J51+J70+J89 -> 151409.5589 | L108: =L32+L51+L70+L89 -> 172166.02 | M108: 1.936732688 | N108: =N32+N51+N70+N89 -> 333439.5586 | P108: 484849.1175
B109: October | D109: 127560.36 | E109: 3.631088713 | F109: 463182.9835 | H109: =H33+H52+H71+H90 -> 129836.07 | I109: 0.833488082 | J109: =J33+J52+J71+J90 -> 108216.817 | L109: =L33+L52+L71+L90 -> 123396.17 | M109: 1.933660096 | N109: =N33+N52+N71+N90 -> 238606.2499 | P109: 346823.0669
B110: November | D110: 147831.66 | E110: 3.634280933 | F110: 537261.7833 | H110: =H34+H53+H72+H91 -> 144720.36 | I110: 0.8336817919 | J110: =J34+J53+J72+J91 -> 120650.729 | L110: =L34+L53+L72+L91 -> 138922.83 | M110: 1.932904375 | N110: =N34+N53+N72+N91 -> 268524.5459 | P110: 389175.2749
B111: December | D111: 145371.8 | E111: 3.634441764 | F111: 528345.3412 | H111: =H35+H54+H73+H92 -> 142516.58 | I111: 0.8337325586 | J111: =J35+J54+J73+J92 -> 118820.7129 | L111: =L35+L54+L73+L92 -> 136697.57 | M111: 1.933155144 | N111: =N35+N54+N73+N92 -> 264257.6106 | P111: 383078.3235
B113: Total | D113: =SUM(D100:D111) -> 1857579.38 | E113: =IF(D113<>0,F113/D113,0) -> 3.635471808 | F113: =SUM(F100:F111) -> 6753177.467 | H113: =SUM(H100:H111) -> 1841715.57 | I113: =IF(H113<>0,J113/H113,0) -> 0.8342451061 | J113: =SUM(J100:J111) -> 1536442.201 | L113: =SUM(L100:L111) -> 1768598.93 | M113: =IF(L113<>0,N113/L113,0) -> 1.934467782 | N113: =SUM(N100:N111) -> 3421297.649 | P113: =SUM(P100:P111) -> 4957739.85
N115: Low Voltage Switchgear Credit (if applicable) | P115: ='5. UTRs and Sub-Transmission'!I95 -> 0
N117: Total including deduction for Low Voltage Switchgear Credit | P117: =P113+P115 -> 4957739.85

Sheet 9. RTSR Rates to Forecast
A13: The purpose of this sheet is to re-align the current RTS Network Rates to recover current wholesale network costs.
A15: Rate Class | B15: Rate Description | C15: Unit | D15: Current RTSR-Network | E15: Loss Adjusted Billed kWh | F15: Billed kW | G15: Billed Amount | H15: Billed Amount % | I15: Current Wholesale Billing | J15: Adjusted RTSR Network
A17: Residential | B17: RTSR - Network | C17: kWh | D17: 0.0074 | E17: 301844136.3 | F17: 0 | G17: =ROUND(D17*E17, 2) -> 2233646.61 | H17: =G17/6874430.66 -> 0.3249209601 | I17: =H17*total_current_wholesale_network -> 2194248.906 | J17: =IF(ISERROR(I17/E17), 0, I17/E17) -> 0.007269476668
A18: General Service Less Than 50 kW | B18: RTSR - Network | C18: kWh | D18: 0.0065 | E18: 114526842 | F18: 0 | G18: =ROUND(D18*E18, 2) -> 744424.47 | H18: =G18/6874430.66 -> 0.1082888906 | I18: =H18*total_current_wholesale_network -> 731294.0962 | J18: =IF(ISERROR(I18/E18), 0, I18/E18) -> 0.006385351099
A19: General Service 50 to 4,999 kW | B19: RTSR - Network | C19: kW | D19: 2.8272 | F19: 1201615 | G19: =ROUND(D19*F19, 2) -> 3397205.93 | H19: =G19/6874430.66 -> 0.4941799689 | I19: =H19*total_current_wholesale_network -> 3337285.031 | J19: =IF(ISERROR(I19/F19), 0, I19/F19) -> 2.777333032
A20: Large Use | B20: RTSR - Network | C20: kW | D20: 2.9998 | F20: 147471 | G20: =ROUND(D20*F20, 2) -> 442383.51 | H20: =G20/6874430.66 -> 0.06435202155 | I20: =H20*total_current_wholesale_network -> 434580.6219 | J20: =IF(ISERROR(I20/F20), 0, I20/F20) -> 2.946888689
A21: Unmetered Scattered Load | B21: RTSR - Network | C21: kWh | D21: 0.0065 | E21: 1302920.161 | F21: 0 | G21: =ROUND(D21*E21, 2) -> 8468.98 | H21: =G21/6874430.66 -> 0.001231953658 | I21: =H21*total_current_wholesale_network -> 8319.601685 | J21: =IF(ISERROR(I21/E21), 0, I21/E21) -> 0.006385350332
A22: Sentinel Lighting | B22: RTSR - Network | C22: kW | D22: 2.0769 | F22: 1144.263889 | G22: =ROUND(D22*F22, 2) -> 2376.52 | H22: =G22/6874430.66 -> 0.0003457042652 | I22: =H22*total_current_wholesale_network -> 2334.602254 | J22: =IF(ISERROR(I22/F22), 0, I22/F22) -> 2.040265604
A23: Street Lighting | B23: RTSR - Network | C23: kW | D23: 2.0555 | F23: 22342.32 | G23: =ROUND(D23*F23, 2) -> 45924.64 | H23: =G23/6874430.66 -> 0.006680500869 | I23: =H23*total_current_wholesale_network -> 45114.60794 | J23: =IF(ISERROR(I23/F23), 0, I23/F23) -> 2.019244552
A24: Embedded Distributor | B24: RTSR - Network | C24: kW | D24: 0 | F24: 10054 | G24: =ROUND(D24*F24, 2) -> 0 | H24: =G24/6874430.66 -> 0 | I24: =H24*total_current_wholesale_network -> 0 | J24: =IF(ISERROR(I24/F24), 0, I24/F24) -> 0
A26: The purpose of this table is to re-align the current RTS Connection Rates to recover current wholesale connection costs.
A27: Rate Class | B27: Rate Description | C27: Unit | D27: Current RTSR-Connection | E27: Loss Adjusted Billed kWh | F27: Billed kW | G27: Billed Amount | H27: Billed Amount % | I27: Current Wholesale Billing | J27: Adjusted RTSR-Connection
A29: Residential | B29: RTSR - Connection | C29: kWh | D29: 0.0053 | E29: 301844136.3 | F29: 0 | G29: =ROUND(D29*E29, 2) -> 1599773.92 | H29: =G29/4868058.7 -> 0.32862667 | I29: =H29*Total_Current_Wholesale_Lineplus -> 1629245.538 | J29: =IF(ISERROR(I29/E29), 0, I29/E29) -> 0.005397638522
A30: General Service Less Than 50 kW | B30: RTSR - Connection | C30: kWh | D30: 0.0047 | E30: 114526842 | F30: 0 | G30: =ROUND(D30*E30, 2) -> 538276.16 | H30: =G30/4868058.7 -> 0.1105730627 | I30: =H30*Total_Current_Wholesale_Lineplus -> 548192.4794 | J30: =IF(ISERROR(I30/E30), 0, I30/E30) -> 0.004786585136
A31: General Service 50 to 4,999 kW | B31: RTSR - Connection | C31: kW | D31: 1.9724 | F31: 1201615 | G31: =ROUND(D31*F31, 2) -> 2370065.43 | H31: =G31/4868058.7 -> 0.4868604871 | I31: =H31*Total_Current_Wholesale_Lineplus -> 2413727.638 | J31: =IF(ISERROR(I31/F31), 0, I31/F31) -> 2.008736274
A32: Large Use | B32: RTSR - Connection | C32: kW | D32: 2.1684 | F32: 147471 | G32: =ROUND(D32*F32, 2) -> 319776.12 | H32: =G32/4868058.7 -> 0.06568863272 | I32: =H32*Total_Current_Wholesale_Lineplus -> 325667.1521 | J32: =IF(ISERROR(I32/F32), 0, I32/F32) -> 2.208347079
A33: Unmetered Scattered Load | B33: RTSR - Connection | C33: kWh | D33: 0.0047 | E33: 1302920.161 | F33: 0 | G33: =ROUND(D33*E33, 2) -> 6123.72 | H33: =G33/4868058.7 -> 0.001257938817 | I33: =H33*Total_Current_Wholesale_Lineplus -> 6236.5334 | J33: =IF(ISERROR(I33/E33), 0, I33/E33) -> 0.004786581392
A34: Sentinel Lighting | B34: RTSR - Connection | C34: kW | D34: 1.4823 | F34: 1144.263889 | G34: =ROUND(D34*F34, 2) -> 1696.14 | H34: =G34/4868058.7 -> 0.0003484222571 | I34: =H34*Total_Current_Wholesale_Lineplus -> 1727.386909 | J34: =IF(ISERROR(I34/F34), 0, I34/F34) -> 1.509605368
A35: Street Lighting | B35: RTSR - Connection | C35: kW | D35: 1.4478 | F35: 22342.32 | G35: =ROUND(D35*F35, 2) -> 32347.21 | H35: =G35/4868058.7 -> 0.00664478635 | I35: =H35*Total_Current_Wholesale_Lineplus -> 32943.12208 | J35: =IF(ISERROR(I35/F35), 0, I35/F35) -> 1.474471858
A36: Embedded Distributor | B36: RTSR - Connection | C36: kW | D36: 0 | F36: 10054 | G36: =ROUND(D36*F36, 2) -> 0 | H36: =G36/4868058.7 -> 0 | I36: =H36*Total_Current_Wholesale_Lineplus -> 0 | J36: =IF(ISERROR(I36/F36), 0, I36/F36) -> 0
A38: The purpose of this table is to update the re-aligned RTS Network Rates to recover future wholesale network costs.
A39: Rate Class | B39: Rate Description | C39: Unit | D39: Adjusted RTSR-Network | E39: Loss Adjusted Billed kWh | F39: Billed kW | G39: Billed Amount | H39: Billed Amount % | I39: Current Wholesale Billing | J39: Proposed RTSR-Network
A41: Residential | B41: RTSR - Network | C41: kWh | D41: 0.007269476668 | E41: 301844136.3 | F41: 0 | G41: =IF(ISERROR(D41*E41), 0, ROUND(D41*E41, 2)) -> 2194248.91 | H41: =G41/6753177.47 -> 0.3249209605 | I41: =H41*forecast_wholesale_network -> 2194248.909 | J41: =IF(ISERROR(I41/E41), 0, I41/E41) -> 0.007269476677
A42: General Service Less Than 50 kW | B42: RTSR - Network | C42: kWh | D42: 0.006385351099 | E42: 114526842 | F42: 0 | G42: =IF(ISERROR(D42*E42), 0, ROUND(D42*E42, 2)) -> 731294.1 | H42: =G42/6753177.47 -> 0.1082888912 | I42: =H42*forecast_wholesale_network -> 731294.0997 | J42: =IF(ISERROR(I42/E42), 0, I42/E42) -> 0.006385351129
A43: General Service 50 to 4,999 kW | B43: RTSR - Network | C43: kW | D43: 2.777333032 | F43: 1201615 | G43: =ROUND(D43*F43, 2) -> 3337285.03 | H43: =G43/6753177.47 -> 0.4941799686 | I43: =H43*forecast_wholesale_network -> 3337285.028 | J43: =IF(ISERROR(I43/F43), 0, I43/F43) -> 2.77733303
A44: Large Use | B44: RTSR - Network | C44: kW | D44: 2.946888689 | F44: 147471 | G44: =ROUND(D44*F44, 2) -> 434580.62 | H44: =G44/6753177.47 -> 0.06435202124 | I44: =H44*forecast_wholesale_network -> 434580.6198 | J44: =IF(ISERROR(I44/F44), 0, I44/F44) -> 2.946888675
A45: Unmetered Scattered Load | B45: RTSR - Network | C45: kWh | D45: 0.006385350332 | E45: 1302920.161 | F45: 0 | G45: =IF(ISERROR(D45*E45), 0, ROUND(D45*E45, 2)) -> 8319.6 | H45: =G45/6753177.47 -> 0.001231953408 | I45: =H45*forecast_wholesale_network -> 8319.599996 | J45: =IF(ISERROR(I45/E45), 0, I45/E45) -> 0.006385349035
A46: Sentinel Lighting | B46: RTSR - Network | C46: kW | D46: 2.040265604 | F46: 1144.263889 | G46: =ROUND(D46*F46, 2) -> 2334.6 | H46: =G46/6753177.47 -> 0.0003457039313 | I46: =H46*forecast_wholesale_network -> 2334.599999 | J46: =IF(ISERROR(I46/F46), 0, I46/F46) -> 2.040263633
A47: Street Lighting | B47: RTSR - Network | C47: kW | D47: 2.019244552 | F47: 22342.32 | G47: =ROUND(D47*F47, 2) -> 45114.61 | H47: =G47/6753177.47 -> 0.006680501172 | I47: =H47*forecast_wholesale_network -> 45114.60998 | J47: =IF(ISERROR(I47/F47), 0, I47/F47) -> 2.019244643
A48: Embedded Distributor | B48: RTSR - Network | C48: kW | D48: 0 | F48: 10054 | G48: =ROUND(D48*F48, 2) -> 0 | H48: =G48/6753177.47 -> 0 | I48: =H48*forecast_wholesale_network -> 0 | J48: =IF(ISERROR(I48/F48), 0, I48/F48) -> 0
A50: The purpose of this table is to update the re-aligned RTS Connection Rates to recover future wholesale connection costs.
A51: Rate Class | B51: Rate Description | C51: Unit | D51: Adjusted RTSR-Connection | E51: Loss Adjusted Billed kWh | F51: Billed kW | G51: Billed Amount | H51: Billed Amount % | I51: Current Wholesale Billing | J51: Proposed RTSR-Connection
A53: Residential | B53: RTSR - Connection | C53: kWh | D53: 0.005397638522 | E53: 301844136.3 | F53: 0 | G53: =ROUND(D53*E53, 2) -> 1629245.54 | H53: =G53/4957739.85 -> 0.3286266705 | I53: =H53*forecast_wholesale_lineplus -> 1629245.54 | J53: =IF(ISERROR(I53/E53), 0, I53/E53) -> 0.00539763853
A54: General Service Less Than 50 kW | B54: RTSR - Connection | C54: kWh | D54: 0.004786585136 | E54: 114526842 | F54: 0 | G54: =ROUND(D54*E54, 2) -> 548192.48 | H54: =G54/4957739.85 -> 0.1105730628 | I54: =H54*forecast_wholesale_lineplus -> 548192.48 | J54: =IF(ISERROR(I54/E54), 0, I54/E54) -> 0.004786585141
A55: General Service 50 to 4,999 kW | B55: RTSR - Connection | C55: kW | D55: 2.008736274 | F55: 1201615 | G55: =ROUND(D55*F55, 2) -> 2413727.64 | H55: =G55/4957739.85 -> 0.4868604874 | I55: =H55*forecast_wholesale_lineplus -> 2413727.64 | J55: =IF(ISERROR(I55/F55), 0, I55/F55) -> 2.008736276
A56: Large Use | B56: RTSR - Connection | C56: kW | D56: 2.208347079 | F56: 147471 | G56: =ROUND(D56*F56, 2) -> 325667.15 | H56: =G56/4957739.85 -> 0.06568863229 | I56: =H56*forecast_wholesale_lineplus -> 325667.15 | J56: =IF(ISERROR(I56/F56), 0, I56/F56) -> 2.208347065
A57: Unmetered Scattered Load | B57: RTSR - Connection | C57: kWh | D57: 0.004786581392 | E57: 1302920.161 | F57: 0 | G57: =ROUND(D57*E57, 2) -> 6236.53 | H57: =G57/4957739.85 -> 0.001257938131 | I57: =H57*forecast_wholesale_lineplus -> 6236.53 | J57: =IF(ISERROR(I57/E57), 0, I57/E57) -> 0.004786578782
A58: Sentinel Lighting | B58: RTSR - Connection | C58: kW | D58: 1.509605368 | F58: 1144.263889 | G58: =ROUND(D58*F58, 2) -> 1727.39 | H58: =G58/4957739.85 -> 0.0003484228806 | I58: =H58*forecast_wholesale_lineplus -> 1727.39 | J58: =IF(ISERROR(I58/F58), 0, I58/F58) -> 1.509608069
A59: Street Lighting | B59: RTSR - Connection | C59: kW | D59: 1.474471858 | F59: 22342.32 | G59: =ROUND(D59*F59, 2) -> 32943.12 | H59: =G59/4957739.85 -> 0.00664478593 | I59: =H59*forecast_wholesale_lineplus -> 32943.12 | J59: =IF(ISERROR(I59/F59), 0, I59/F59) -> 1.474471765
A60: Embedded Distributor | B60: RTSR - Connection | C60: kW | D60: 0 | F60: 10054 | G60: =ROUND(D60*F60, 2) -> 0 | H60: =G60/4957739.85 -> 0 | I60: =H60*forecast_wholesale_lineplus -> 0 | J60: =IF(ISERROR(I60/F60), 0, I60/F60) -> 0

Sheet hidden1 (hidden)
A1: =IF('3. Rate Classes'!L17=1, '3. Rate Classes'!C17, "") -> Residential | B1: 1
A2: =IF('3. Rate Classes'!L18=1, '3. Rate Classes'!C18, "") -> General Service Less Than 50 kW | B2: 2
A3: =IF('3. Rate Classes'!L19=1, '3. Rate Classes'!C19, "") -> General Service 50 to 4,999 kW | B3: 3
A4: =IF('3. Rate Classes'!L20=1, '3. Rate Classes'!C20, "") -> Large Use | B4: 4
A5: =IF('3. Rate Classes'!L21=1, '3. Rate Classes'!C21, "") -> Unmetered Scattered Load | B5: 5
A6: =IF('3. Rate Classes'!L22=1, '3. Rate Classes'!C22, "") -> Sentinel Lighting | B6: 6
A7: =IF('3. Rate Classes'!L23=1, '3. Rate Classes'!C23, "") -> Street Lighting | B7: 7
A8: =IF('3. Rate Classes'!L24=1, '3. Rate Classes'!C24, "") -> Embedded Distributor | B8: 8
A9: =IF('3. Rate Classes'!L25=1, '3. Rate Classes'!C25, "") ->  | B9: 9
A10: =IF('3. Rate Classes'!L26=1, '3. Rate Classes'!C26, "") ->  | B10: 10
A11: =IF('3. Rate Classes'!L27=1, '3. Rate Classes'!C27, "") ->  | B11: 11
A12: =IF('3. Rate Classes'!L28=1, '3. Rate Classes'!C28, "") ->  | B12: 12
A13: =IF('3. Rate Classes'!L29=1, '3. Rate Classes'!C29, "") ->  | B13: 13
A14: =IF('3. Rate Classes'!L30=1, '3. Rate Classes'!C30, "") ->  | B14: 14
A15: =IF('3. Rate Classes'!L31=1, '3. Rate Classes'!C31, "") ->  | B15: 15
A16: =IF('3. Rate Classes'!L32=1, '3. Rate Classes'!C32, "") ->  | B16: 16
A17: =IF('3. Rate Classes'!L33=1, '3. Rate Classes'!C33, "") ->  | B17: 17
A18: =IF('3. Rate Classes'!L34=1, '3. Rate Classes'!C34, "") ->  | B18: 18
A19: =IF('3. Rate Classes'!L35=1, '3. Rate Classes'!C35, "") ->  | B19: 19
A20: =IF('3. Rate Classes'!L36=1, '3. Rate Classes'!C36, "") ->  | B20: 20
A21: =IF('3. Rate Classes'!L37=1, '3. Rate Classes'!C37, "") ->  | B21: 21
A22: =IF('3. Rate Classes'!L38=1, '3. Rate Classes'!C38, "") ->  | B22: 22
